Cogmind - Beta 16 @@@ ROGUE MODE // 2025.10.20 @ 20:16:35 Player: Cherman0 Result: Escaped! Performance ------------- Evolutions (9) 4500 Regions Visited (28) 5600 Robots Destroyed (436) 2180 Value Destroyed (18287) 18287 Prototype IDs (68) 1360 Alien Tech Used (1) 200 Bonus (17029) 17029 TOTAL SCORE: 49156 Bonus ------- Triggered High Security 1000 High Alert Combat Kills 4940 Follower Combat Kills 3311 Entered Garrisons 1200 Used RIF Installer 3500 Aligned with FarCom 300 Win 3000 Friendly Fire -222 Cogmind --------- Core Integrity 1600/1600 Matter 280/300 Energy 236/240 System Corruption 0% Temperature Cool (10) Movement Flying (31) Location To Epsilon Eridani Parts ------- > --- POWER (2) -------- Micro Antimatter Reactor Light Quantum Reactor > --- PROPULSION (7) --- Xenon Bombardment Thruster Field Propulsion Drive Field Propulsion Drive Nuclear Pulse Array Impulse Thruster Array > --- UTILITY (13) ----- Advanced Heat Sink Experimental Coolant Injector Medium Storage Unit Machine Analyzer Triangulator Spectral Analyzer Advanced Sensor Array Advanced Signal Interpreter Improved Melee Analysis Suite Centrium Light Armor Plating Hacking Suite Experimental Hacking Suite Improved System Shield > --- WEAPON (3) ------- Enhanced Quantum Rifle Improved Plasma Cutter Nanosword > --- INVENTORY (10) --- Light Quantum Reactor Improved Medium Armor Plating High-powered Transdimensional Reconstructor Subatomic Replicator Nova Cannon Advanced KE Penetrator Micro-nuke Launcher Advanced Remote Datajack Core Stripper Peak State ------------ > --- POWER ------------ Micro Antimatter Reactor Light Quantum Reactor > --- PROPULSION ------- Xenon Bombardment Thruster Field Propulsion Drive Field Propulsion Drive Nuclear Pulse Array Impulse Thruster Array > --- UTILITY ---------- Advanced Heat Sink Experimental Coolant Injector Medium Storage Unit Machine Analyzer Triangulator Spectral Analyzer Advanced Sensor Array Advanced Signal Interpreter Improved Melee Analysis Suite Centrium Light Armor Plating Hacking Suite Experimental Hacking Suite Improved System Shield > --- WEAPON ----------- Enhanced Quantum Rifle Advanced KE Penetrator Nanosword > --- INVENTORY -------- Light Quantum Reactor Improved Medium Armor Plating High-powered Transdimensional Reconstructor Subatomic Replicator Nova Cannon Micro-nuke Launcher Advanced Remote Datajack Improved Plasma Cutter Core Stripper [Rating: 167] Favorites ----------- Power Reinforced Quantum Reactor Engine Deuterium Engine Power Core Micro Nuclear Core Reactor Reinforced Quantum Reactor Propulsion Light Treads Treads Light Treads Flight Unit Impulse Thruster Array Utility Huge Storage Unit Device Seismic Detector Storage Huge Storage Unit Processor Core Analyzer Hackware Relay Coupler [NC] Protection Medium Reactive Plating Weapon Gatling Laser Energy Gun Gatling Laser Energy Cannon Guided Plasma Cannon Ballistic Gun Minigun Ballistic Cannon Light Cannon Launcher Mini Grenade Launcher Special Weapon Advanced Remote Datajack Impact Weapon Flail Slashing Weapon Power Sword Piercing Weapon Enhanced Force Lance Special Melee Weapon Datajack Build | -11 -10 -10 -9 -9 -9 -8 -8 -8 -7 -7 -7 -7 -6 -6 -6 -6 -5 -5 -4 -4 -4 -4 -3 -3 -3 -2 -2 -1 ------- Run | Yrd Mat Min Mat Min Exi Min Mat Gar Fac Gar Fac Gar Fac Gar Fac Gar Fac Gar Fac Upp Upp War Pro Res Arm Res Qua Acc Slots Evolved 18 | . . . 2 . . . 2 . 2 . . . 2 . . . 2 . 2 . . . . 2 . 2 . 2 Power 1 | . . . . . . . . . . . . . . . . . 1 . . . . . . . . . . . Propulsion 5 | . . . 1 . . . . . 1 . . . . . . . . . 2 . . . . . . 1 . . Utility 11 | . . . 1 . . . 1 . 1 . . . 2 . . . 1 . . . . . . 2 . 1 . 2 Weapon 1 | . . . . . . . 1 . . . . . . . . . . . . . . . . . . . . . Parts Attached 249 | 8 9 3 33 3 . 5 18 9 3 16 4 9 3 6 4 3 9 10 4 5 5 . 6 40 9 13 9 3 Power 30 | 1 2 . 2 . . 3 2 1 1 1 . 1 . . . . 1 1 . . 1 . . 4 4 1 4 . Engine 10 | 1 2 . 2 . . 1 1 . . 1 . . . . . . 1 . . . . . . 1 . . . . Core 6 | . . . . . . 2 1 1 1 . . . . . . . . . . . . . . . . . 1 . Reactor 14 | . . . . . . . . . . . . 1 . . . . . 1 . . 1 . . 3 4 1 3 . Propulsion 46 | 2 . . 14 . . . 6 5 . 4 . . . 2 . . 2 . . . . . . 4 1 6 . . Treads 36 | 2 . . 14 . . . 6 5 . 4 . . . 2 . . 2 . . . . . . 1 . . . . Leg . | . . . . . . . . . . . . . . . . . . . . . . . . . . . . . Wheel . | . . . . . . . . . . . . . . . . . . . . . . . . . . . . . Hover . | . . . . . . . . . . . . . . . . . . . . . . . . . . . . . Flight 10 | . . . . . . . . . . . . . . . . . . . . . . . . 3 1 6 . . Utility 102 | 2 3 1 9 1 . 1 5 3 2 5 2 7 1 1 2 2 5 3 2 2 2 . 5 22 2 4 5 3 Device 48 | 1 2 . 2 . . . 1 1 1 2 . 3 1 1 2 1 4 2 . 2 2 . 4 10 2 2 1 1 Storage 8 | 1 1 . 1 . . . 1 . . . 1 1 . . . . . . . . . . . 1 . . 1 . Processor 12 | . . . . . . . . . 1 . . . . . . 1 . . . . . . 1 6 . . 2 1 Hackware 12 | . . . . . . . . . . . 1 2 . . . . 1 . 2 . . . . 4 . . 1 1 Protection 22 | . . 1 6 1 . 1 3 2 . 3 . 1 . . . . . 1 . . . . . 1 . 2 . . Artifact . | . . . . . . . . . . . . . . . . . . . . . . . . . . . . . Weapon 71 | 3 4 2 8 2 . 1 5 . . 6 2 1 2 3 2 1 1 6 2 3 2 . 1 10 2 2 . . Energy Gun 24 | 2 1 1 3 . . . . . . . . . 1 2 1 1 . 5 . 3 1 . 1 1 . 1 . . Energy Cannon 3 | . . . 1 . . . . . . 1 . . . . . . . . . . . . . 1 . . . . Ballistic Gun 28 | 1 . . 2 2 . . 5 . . 4 1 1 1 . 1 . 1 1 1 . . . . 4 2 1 . . Ballistic Cannon 2 | . 1 1 . . . . . . . . . . . . . . . . . . . . . . . . . . Launcher 3 | . . . 1 . . 1 . . . . . . . . . . . . . . . . . 1 . . . . Special Weapon 5 | . 1 . . . . . . . . . 1 . . 1 . . . . 1 . . . . 1 . . . . Impact Weapon 1 | . . . 1 . . . . . . . . . . . . . . . . . . . . . . . . . Slashing Weapon 3 | . . . . . . . . . . 1 . . . . . . . . . . 1 . . 1 . . . . Piercing Weapon 1 | . . . . . . . . . . . . . . . . . . . . . . . . 1 . . . . Special Melee Weapon 1 | . 1 . . . . . . . . . . . . . . . . . . . . . . . . . . . Unidentified Prototypes 18 | . . . 3 . . . 1 . . . . . . . 1 1 1 . . . . . . 8 1 . 2 . Corrupted Parts 1 | . . . . . . . . . . . . . . . . . . . . . 1 . . . . . . . System Corruption 12 | . . . . . . . . . . . . . . . . . . . . . 12 . . . . . . . Parts Lost 61 | . 2 . 3 3 . . 1 . . 5 . . . . 1 1 1 7 . . 5 . 2 16 3 9 2 . Power 11 | . 1 . 1 1 . . . . . . . . . . . . . 1 . . 1 . . 3 2 1 . . Propulsion 10 | . . . 1 1 . . . . . 1 . . . . . . 1 . . . 1 . . 2 . 2 1 . Utility 25 | . 1 . 1 1 . . . . . 2 . . . . . . . 2 . . 3 . 2 7 1 4 1 . Weapon 15 | . . . . . . . 1 . . 2 . . . . 1 1 . 4 . . . . . 4 . 2 . . Highest Loss Streak 15 | . 1 . 1 3 . . 1 . . 3 . . . . 1 1 1 3 . . 2 . 1 15 2 7 1 . To Critical Strikes 4 | . . . . . . . . . . . . . . . 1 . 1 . . . . . . 1 . 1 . . Average Backups 21 | 1 12 15 19 24 25 25 24 24 24 24 23 22 22 23 22 22 23 23 24 25 24 22 22 11 5 4 7 8 Power . | . . . . . . . 1 1 1 1 1 1 1 1 1 1 1 2 1 2 1 1 1 . . . 1 1 Propulsion 2 | . . 1 5 5 5 5 4 3 3 3 2 2 2 2 2 2 1 1 . . . . . . . . 1 . Utility 9 | . 4 6 5 6 7 7 9 11 11 11 12 12 10 11 11 11 13 14 14 14 13 12 11 5 2 1 2 1 Weapon 6 | 1 6 5 6 11 12 11 9 8 7 6 6 5 6 7 6 5 5 3 5 6 6 7 8 4 1 . . 2 Tool/Special . | . . . . . . . . . . . . . . . . . . . . . . . . . . . . . Unused Backups 57 | . 4 2 5 1 2 1 3 5 . 6 . 2 . . . 2 1 1 1 . 1 . 1 10 3 . 1 5 Power 4 | . . . 1 . . 1 . . . . . . . . . 1 . 1 . . . . . . . . . . Propulsion 7 | . . . 1 . . . 1 1 . 4 . . . . . . . . . . . . . . . . . . Utility 23 | . 2 1 . . 1 . 1 2 . 1 . 1 . . . 1 1 . . . 1 . 1 8 1 . 1 . Weapon 21 | . 2 1 3 1 1 . 1 2 . 1 . 1 . . . . . . 1 . . . . 2 2 . . 3 Tool/Special 2 | . . . . . . . . . . . . . . . . . . . . . . . . . . . . 2 Average Slot Usage (%) 91 | . 99 100 99 95 88 99 99 100 99 97 83 83 85 85 85 86 85 85 84 83 80 73 77 66 83 71 87 85 Engine 4 | . 14 14 10 7 . 1 5 4 . 3 7 . . . . . 3 3 4 5 3 . . 1 3 . . . Core 1 | . . . . . . 9 3 4 7 3 . . . . . . . . . . . 5 5 1 . . . . Reactor 2 | . . . . . . . . . . . . 6 6 6 6 6 5 5 5 5 5 5 5 3 3 4 6 8 Treads 21 | . 27 28 32 32 33 33 26 27 30 28 15 15 13 13 13 13 10 11 15 15 13 10 10 3 . . . . Device 12 | . 13 13 11 11 11 . 3 9 14 13 11 10 25 26 26 20 18 19 12 9 13 15 15 14 14 15 15 13 Storage 8 | . 14 14 11 11 11 11 17 10 10 7 7 7 6 6 6 6 5 5 5 5 5 5 5 1 . . 2 4 Processor 5 | . . . . . . . . . 3 7 7 7 6 6 6 12 11 11 10 10 10 10 14 14 17 10 12 14 Hackware 1 | . . . . . . . . . . . 3 2 . . . . 3 3 7 10 8 5 5 4 9 8 8 9 Protection 7 | . . . 10 11 11 21 14 16 7 8 7 7 6 6 6 6 5 4 5 5 1 . . 1 4 3 6 4 Energy Gun 6 | . 13 13 10 5 . . . . . . . . . 8 19 16 15 12 10 10 10 10 10 1 . 1 4 4 Ballistic Gun 12 | . 12 14 10 14 13 18 26 22 22 17 19 19 18 9 . . . 1 4 4 4 5 4 3 5 6 4 2 Peak Build Rating 167 | 7 10 12 20 20 19 24 31 35 40 70 68 81 88 91 90 91 91 100 110 115 116 95 108 129 141 141 160 167 Average Rating 56 | 5 9 10 17 18 16 23 27 32 38 43 66 74 86 87 85 86 87 92 105 108 107 95 104 103 132 122 145 158 On Entrance 68 | . 7 10 11 19 18 19 24 31 35 40 68 66 76 86 90 85 83 90 95 107 111 95 95 108 124 128 125 149 Avg Prop Armor Cover (%) 8 | . . . . . . . . . . . . . . . . . . . . . . . . 8 . . . . Naked Turns . | . . . . . . . . . . . . . . . . . . . . . . . . . . . . . Heaviest Build 149 | 13 31 37 103 101 92 101 116 121 122 139 128 144 148 147 147 147 149 149 141 142 146 124 126 127 42 46 56 53 Greatest Support 225 | 40 40 40 60 60 60 60 60 60 80 150 150 150 150 150 150 150 150 150 225 225 225 150 150 150 44 54 57 56 Greatest Overweight (x) 2 | . . . 1 1 1 1 2 2 1 1 . . . . . . . . . . . . . . . . 1 . Average Overweight (x) . | . . . . 1 1 1 1 1 1 . . . . . . . . . . . . . . . . . . . Largest Inventory Capacity 25 | 8 15 15 25 25 25 25 25 25 25 25 25 25 25 25 25 25 25 25 25 25 25 25 25 25 5 5 10 10 Average Capacity 22 | 7 14 15 19 25 25 25 25 25 25 25 25 25 25 25 25 25 25 25 25 25 25 25 25 11 5 5 8 10 Most Carried 25 | 4 15 15 25 25 25 25 25 25 25 25 25 25 25 25 25 25 25 25 25 25 25 22 25 25 5 5 10 10 Average Carried 21 | 2 12 14 19 24 24 25 24 24 24 24 25 24 24 24 24 24 24 24 24 24 24 22 22 11 4 4 8 9 Final Capacity 25 | 8 15 15 25 25 25 25 25 25 25 25 25 25 25 25 25 25 25 25 25 25 25 25 25 5 5 5 10 10 Final Carried 25 | 4 15 15 25 25 25 25 25 25 25 25 25 25 25 25 24 25 25 25 25 25 22 22 25 5 5 5 10 10 Class Distribution -------------------- 27% | Mutant 18% | Scavenger-Tank 13% | Scavenger-Mutant 7% | Tank 7% | Bothacker-Tank 5% | Commander-Mutant 4% | Scavenger-Gunner 3% | Skirmisher Dominant Class ---------------- Mutant | -10/Materials Mutant | -10/Mines Mutant | -9/Materials Commander-Mutant | -9/Mines Mutant | -9/Exiles Scavenger-Mutant | -8/Mines Tank | -8/Materials Commander-Tank | -8/Garrison Scavenger-Gunner | -7/Factory Scavenger-Mutant | -7/Garrison Tank | -7/Factory Scavenger-Tank | -7/Garrison Scavenger-Tank | -6/Factory Scavenger-Tank | -6/Garrison Scavenger-Tank | -6/Factory Scavenger-Mutant | -6/Garrison Scavenger-Tank | -5/Factory Scavenger-Mutant | -5/Garrison Bothacker-Tank | -4/Factory Bothacker-Tank | -4/Upper Caves Bothacker-Gunner | -4/Upper Caves Scavenger-Tank | -4/Warlord Scavenger-Tank | -3/Proximity Caves Mutant | -3/Research Hacker-Mutant | -3/Armory Hacker-Mutant | -2/Research Hacker-Ninja | -2/Quarantine Hacker-Ninja | -1/Access Resources | -11 -10 -10 -9 -9 -9 -8 -8 -8 -7 -7 -7 -7 -6 -6 -6 -6 -5 -5 -4 -4 -4 -4 -3 -3 -3 -2 -2 -1 ----------- Run | Yrd Mat Min Mat Min Exi Min Mat Gar Fac Gar Fac Gar Fac Gar Fac Gar Fac Gar Fac Upp Upp War Pro Res Arm Res Qua Acc Matter Collected 13364 | 301 520 296 925 172 10 280 1582 1241 138 1288 78 1310 216 573 115 881 290 467 198 210 521 . 296 830 114 242 . 270 Remotely 315 | . . . . . . . . . . . . 315 . . . . . . . . . . . . . . . . Salvage Created 19192 | 140 899 242 1992 209 . 501 2156 976 241 2054 78 1154 319 1761 153 979 510 1027 166 356 1039 . 346 1337 114 166 . 277 Parts 953 | 9 64 19 126 14 . 36 112 60 11 90 3 71 9 75 6 37 14 43 4 18 26 . 17 60 8 9 . 12 Haulers Intercepted 18 | . 2 . 6 . . . 4 . . . . . . . . . 1 . . . . . . 4 . . . 1 Recyclers Shooed 9 | . 1 . 4 . . . 3 . . . . . . . . . . . . . . . . 1 . . . . Parts Field Recycled . | . . . . . . . . . . . . . . . . . . . . . . . . . . . . . Retrieved Matter . | . . . . . . . . . . . . . . . . . . . . . . . . . . . . . Parts Self-Destructed 64 | . . . . . . . . . . . . . . . . . . . . 20 26 . 18 . . . . . Prevented . | . . . . . . . . . . . . . . . . . . . . . . . . . . . . . Parts Restored . | . . . . . . . . . . . . . . . . . . . . . . . . . . . . . Kills | -11 -10 -10 -9 -9 -9 -8 -8 -8 -7 -7 -7 -7 -6 -6 -6 -6 -5 -5 -4 -4 -4 -4 -3 -3 -3 -2 -2 -1 ------- Run | Yrd Mat Min Mat Min Exi Min Mat Gar Fac Gar Fac Gar Fac Gar Fac Gar Fac Gar Fac Upp Upp War Pro Res Arm Res Qua Acc Combat Hostiles Destroyed 344 | . 20 4 39 2 . 14 28 28 5 30 1 31 3 27 5 32 6 22 3 9 14 . 5 9 3 4 . . Melee 10 | . . . . . . . . . . 1 . 3 . . . . . . . . . . . 5 . 1 . . Guns 256 | . 19 3 28 2 . 4 25 18 3 15 1 23 3 22 4 22 6 22 1 8 12 . 5 4 3 3 . . Cannons 5 | . 1 1 . . . . . . . 3 . . . . . . . . . . . . . . . . . . AOE 64 | . . . 10 . . 10 3 9 2 11 . 5 . 5 . 9 . . . . . . . . . . . . Classes Destroyed 23 | 2 7 1 3 1 . . 1 3 . 1 . . . . . 1 . 2 . . . . 1 . . . . . Worker 9 | . . . 3 2 . 1 2 . . . . . . . . . . . . . . . . 1 . . . . Builder 8 | . 1 . 2 1 . 2 1 . 1 . . . . . . . . . . . . . . . . . . . Tunneler 10 | 2 1 1 1 1 . 2 1 . . . 1 . . . . . . . . . . . . . . . . . Hauler 18 | . 2 . 6 . . . 4 . . . . . . . . . 1 . . . . . . 4 . . . 1 Recycler 18 | 1 1 . 2 1 . 2 7 . . . . . 1 . . . . . . . . . . 2 . . . 1 Mechanic 3 | . 1 . . . . . . . . . . . . . . . 1 . . . . . . 1 . . . . Operator 5 | . 1 . 3 . . . . . . . . . . . . . . . . . . . . 1 . . . . Drone 1 | . . . . . . . . . . . . . . . . . . . . . . . 1 . . . . . Watcher 17 | . 3 . 5 . . . 5 . . 1 . . . . . . 1 . . . . . . 1 . . . 1 Swarmer 99 | . 9 . 11 . . 8 4 9 . 5 . 10 . 8 3 16 . 3 . 6 1 . . . 3 3 . . Cutter 9 | . . . . . . . 2 . . . . . . 2 . . . 2 . . . . . 3 . . . . Saboteur 1 | . . . . . . . . . . . . . . . . . . 1 . . . . . . . . . . Grunt 116 | . 11 2 16 . . 5 15 8 5 17 . 5 . 6 . 6 4 7 3 2 4 . . . . . . . Brawler 4 | . . . 1 . . 1 1 . . 1 . . . . . . . . . . . . . . . . . . Duelist 10 | . . . 1 . . . 1 1 . . . . . 2 . 2 . . . . 3 . . . . . . . Protector 1 | . . . . . . . . . . 1 . . . . . . . . . . . . . . . . . . Sentry 47 | . . 2 10 . . . 5 2 . 1 . 5 2 7 1 2 2 2 1 1 2 . 1 1 . . . . Demolisher 4 | . . . . 2 . . . . . 1 . 1 . . . . . . . . . . . . . . . . Specialist 4 | . . . . . . . . 3 . 1 . . . . . . . . . . . . . . . . . . Hunter 15 | . . . . . . . . 1 . 2 1 4 . . . 2 . 1 . . 4 . . . . . . . Programmer 32 | . . . . . . . . 4 . 2 . 6 1 2 1 3 . 5 . . . . 2 5 . 1 . . Behemoth 2 | . . . . . . . . . . . . . . . . . . 1 . . . . 1 . . . . . Striker 1 | . . . . . . . . . . . . . . . . 1 . . . . . . . . . . . . Thug 1 | . . 1 . . . . . . . . . . . . . . . . . . . . . . . . . . Savage 1 | . . . . . . . . 1 . . . . . . . . . . . . . . . . . . . . Best Kill Streak 13 | 3 6 2 13 2 . 6 9 5 2 4 1 11 1 7 4 13 3 4 2 5 4 . 2 3 2 3 . 2 Combat Bots Only 13 | . 6 2 9 2 . 4 4 5 2 4 1 11 1 7 4 13 3 4 2 5 4 . 2 3 2 3 . . Max Kills in Single Turn 6 | 1 1 1 4 1 . 6 4 4 2 2 1 2 1 2 1 3 2 2 1 1 1 . 1 1 1 1 . 1 Gunslinging 1 | . . . . . . . . 1 . 1 . . . . . . 1 1 . . . . . . . . . . Exploded 4 | . . . 2 . . 4 3 3 2 2 . 2 . 2 . 3 . . . . . . . . . . . . Melee 1 | . . . . . . . . . . 1 . 1 . . . . . . . . . . . 1 . 1 . . Uniques/NPCs Destroyed . | . . . . . . . . . . . . . . . . . . . . . . . . . . . . . Combat | -11 -10 -10 -9 -9 -9 -8 -8 -8 -7 -7 -7 -7 -6 -6 -6 -6 -5 -5 -4 -4 -4 -4 -3 -3 -3 -2 -2 -1 -------- Run | Yrd Mat Min Mat Min Exi Min Mat Gar Fac Gar Fac Gar Fac Gar Fac Gar Fac Gar Fac Upp Upp War Pro Res Arm Res Qua Acc Hostile Shots Fired 1854 | . 83 15 134 17 . 32 67 87 5 82 6 172 22 138 38 76 30 118 26 32 113 . 47 282 59 90 79 4 Missed 619 | . 23 3 32 1 . 12 22 20 . 23 1 50 11 59 14 26 8 27 8 8 29 . 12 113 32 35 47 3 Hits 1235 | . 60 12 102 16 . 20 45 67 5 59 5 122 11 79 24 50 22 91 18 24 84 . 35 169 27 55 32 1 Melee 29 | . . . 4 . . . 5 1 . . . . . 2 . 2 1 3 . . 7 . . 4 . . . . Projectile 1206 | . 60 12 98 16 . 20 40 66 5 59 5 122 11 77 24 48 21 88 18 24 77 . 35 165 27 55 32 1 AOE 39 | . . . . 17 . . . . . 13 . . . 2 . . . 6 . . . . . 1 . . . . Critical Strikes 43 | . 1 1 1 . . . 2 5 . 1 . 3 . 1 1 2 1 6 . . 1 . 2 11 1 2 1 . Part Disruptions 3 | . . . . . . . . . . . . 1 . . . 1 . . . . . . . 1 . . . . Damage Taken 20551 | . 618 174 1298 717 . 358 681 947 93 1127 60 1155 110 791 209 806 539 2070 396 429 1497 . 722 3202 632 1219 682 19 Core 2711 | . 204 27 135 45 . 54 43 127 . 83 7 63 14 40 . 68 51 168 18 61 38 . 27 1078 99 156 105 . Absorbed by Shields 471 | . . . . . . . . 121 . 17 . 8 . . . . . . . . 18 . 240 67 . . . . Reduced by Siege Mode 559 | . . . . . . . . . . . . 65 . . . . . 68 . 11 160 . 87 168 . . . . Redirected to Shielding 99 | . . . . . . . . . . . . . . . . . . . . . . . . . . 27 72 . Ignored by Resistances 1085 | . . . . . . . . 29 . 92 28 233 12 152 79 209 65 186 . . . . . . . . . . Regen/Repaired (Parts) 4902 | . 134 . 298 . . . . . . . 78 342 39 . . . 687 1118 405 294 395 . 499 39 . . 574 . Core Remaining (%) 66 | 100 . 7 . . . 41 . 69 . . . 78 . . . 85 . 78 . . . . 87 . 9 . 73 100 Volleys Fired 982 | 7 66 15 145 14 . 22 109 63 5 66 9 80 9 48 8 68 23 44 16 15 54 . 26 35 16 14 5 . Largest 3 | 2 2 2 2 2 . 2 3 3 3 3 3 3 3 3 3 3 3 3 3 3 3 . 3 3 2 2 2 . Hottest 240 | 70 100 85 85 79 . 50 75 75 75 120 81 120 85 240 240 240 240 240 182 190 198 . 217 215 70 100 100 . Shots Fired 2186 | 14 130 26 264 28 . 37 327 169 13 147 18 171 25 135 21 115 49 111 33 41 122 . 60 75 26 23 6 . Gun 2034 | 14 127 25 258 28 . 30 326 162 12 124 14 143 24 132 21 81 39 111 27 40 111 . 58 72 26 23 6 . Cannon 12 | . 2 1 . . . . . . . 7 . 2 . . . . . . . . . . . . . . . . Launcher 69 | . . . 6 . . 7 1 7 1 16 . 4 . 3 . 18 . . . . 5 . . 1 . . . . Special 71 | . 1 . . . . . . . . . 4 22 1 . . 16 10 . 6 1 6 . 2 2 . . . . Kinetic 1358 | 7 67 15 138 27 . 30 326 162 12 124 14 143 24 70 . . . 7 7 12 32 . 25 63 26 22 5 . Thermal 684 | 7 63 11 120 1 . . . . . 7 . 2 . 62 21 81 39 99 20 28 79 . 33 9 . 1 1 . Explosive 69 | . . . 6 . . 7 1 7 1 16 . 4 . 3 . 18 . . . . 5 . . 1 . . . . Electromagnetic 5 | . . . . . . . . . . . . . . . . . . 5 . . . . . . . . . . Robot Hit Streak 39 | 4 12 12 15 9 . 7 16 10 5 17 13 12 6 39 23 23 20 25 27 11 19 . 22 29 3 8 . . Robot Miss Streak 7 | 2 4 1 4 2 . 3 7 4 2 3 1 3 4 5 3 3 1 3 2 4 3 . 7 2 4 1 . . Penetration Max 1 | . . . . . . . . . . . . 1 . . . . . . 1 . 1 . . 1 1 1 . . Secondary Targets 41 | . 2 2 2 1 . . 4 3 . 2 . 3 . . 3 5 2 5 . 2 2 . 1 1 1 . . . Max Gunslinging Chain 2 | . 1 1 1 1 . . 1 2 . 2 . 1 . . 1 1 1 1 . 1 1 . 1 1 1 . . . Shots Hit Robots 1621 | 9 80 19 177 22 4 25 206 144 6 135 14 118 16 122 16 92 46 92 24 27 91 . 35 64 9 23 2 3 Core Hits 959 | 4 42 13 80 7 . 32 77 60 9 83 4 49 7 88 11 112 41 96 11 20 48 . 13 35 5 9 . 3 Critical Kills 7 | . . . 1 . . . . . 1 1 . . 1 . . . . . . . . . . . 2 1 . . Critical Parts Destroyed 11 | . . . . . . . 1 2 . 1 1 1 . . . . . . . . . . . 1 . 4 . . Critical Strikes 49 | . 3 1 12 . . . 1 2 1 3 1 1 1 4 . . . 3 . . 4 . . 3 2 6 1 . Burn 22 | . 3 1 11 . . . . . . . . . . . . . . 3 . . 4 . . . . . . . Destroy 17 | . . . 1 . . . 1 1 1 2 1 1 1 . . . . . . . . . . 1 2 5 . . Smash 1 | . . . . . . . . 1 . . . . . . . . . . . . . . . . . . . . Sever 9 | . . . . . . . . . . 1 . . . 4 . . . . . . . . . 2 . 1 1 . Melee Attacks 389 | . 1 . 4 2 4 . . 61 1 90 4 20 4 44 . 42 2 26 . . . . . 37 13 12 18 4 Impact 30 | . . . 4 . . . . 22 . 4 . . . . . . . . . . . . . . . . . . Slashing 291 | . . . . . . . . . . 65 4 20 4 44 . 42 2 26 . . . . . 37 13 12 18 4 Piercing . | . . . . . . . . . . . . . . . . . . . . . . . . . . . . . Sneak Attacks 86 | . 1 . 2 2 4 . . 40 1 22 2 . 1 . . . . . . . . . . 9 . . . 2 Combat Hostiles . | . . . . . . . . . . . . . . . . . . . . . . . . . . . . . Follow-up Attacks . | . . . . . . . . . . . . . . . . . . . . . . . . . . . . . Damage Inflicted 43920 | 119 1167 314 3531 365 . 1174 3977 2979 235 5053 276 2443 420 4431 416 4002 1111 2498 471 634 2377 . 920 3394 279 957 89 288 Guns 28516 | 113 1117 269 2679 328 . 422 3655 1989 92 1410 106 1959 326 2194 416 1835 1095 2498 471 634 1866 . 920 1214 279 629 . . Cannons 349 | . 35 18 . . . . . . . 260 . 36 . . . . . . . . . . . . . . . . Explosions 7072 | . . . 684 . . 709 235 829 127 1087 . 294 . 293 . 2011 . . . . 511 . . 292 . . . . Melee 7682 | . . . 129 . . . . 157 . 2296 170 143 94 1944 . 156 . . . . . . . 1888 . 328 89 288 Ramming 301 | 6 15 27 39 37 . 43 87 4 16 . . 11 . . . . 16 . . . . . . . . . . . Kinetic 16123 | 62 509 119 1241 328 . 422 3655 1989 92 1410 106 1959 326 972 . . . 124 117 154 383 . 345 931 279 600 . . Thermal 12697 | 51 643 168 1438 . . . . . . 260 . 36 . 1222 416 1835 1095 2329 354 480 1483 . 575 283 . 29 . . Explosive 7072 | . . . 684 . . 709 235 829 127 1087 . 294 . 293 . 2011 . . . . 511 . . 292 . . . . Electromagnetic 45 | . . . . . . . . . . . . . . . . . . 45 . . . . . . . . . . Impact 403 | . . . 129 . . . . 157 . 117 . . . . . . . . . . . . . . . . . . Slashing 7279 | . . . . . . . . . . 2179 170 143 94 1944 . 156 . . . . . . . 1888 . 328 89 288 Piercing . | . . . . . . . . . . . . . . . . . . . . . . . . . . . . . Highest Corruption 12 | . . . . . . . 5 6 . 2 2 9 4 4 7 8 . 7 . . 12 12 4 4 1 3 6 . Average Corruption 5 | . . . . . . . 5 5 . 1 2 5 3 4 6 7 . 5 . . 12 12 3 2 1 2 3 . Corruption Purged 5 | . . . . . . . . . . . . . . . . . . . . . . . . 5 . . . . Corruption Blocked . | . . . . . . . . . . . . . . . . . . . . . . . . . . . . . Effects 354 | . . . . . . . 14 63 . 11 6 45 7 21 20 57 . 42 . . 17 2 28 5 1 4 11 . Message Errors 77 | . . . . . . . 6 10 . 5 2 9 1 3 5 12 . 10 . . 6 1 6 . . . 1 . Matter Fused 88 | . . . . . . . 4 14 . 3 2 9 2 7 8 11 . 10 . . 7 . 3 4 . . 4 . Heat Flow Errors 39 | . . . . . . . . 9 . 1 1 5 . 2 4 7 . 5 . . 1 1 1 . . 1 1 . Energy Discharges 42 | . . . . . . . 1 7 . . 1 10 . 3 . 5 . 5 . . 1 . 4 . . 1 4 . Parts Rejected 5 | . . . . . . . . 1 . . . . . 1 . 1 . . . . . . . . 1 1 . . Parts Fused 2 | . . . . . . . . . . . . . . . . 1 . 1 . . . . . . . . . . Data Loss (minor) 46 | . . . . . . . 1 8 . 2 . 6 2 1 1 8 . 5 . . 1 . 10 . . . 1 . Data Loss (major) 16 | . . . . . . . . 4 . . . 1 1 . . 3 . 4 . . 1 . 2 . . . . . Misfires 20 | . . . . . . . 2 5 . . . 2 . 3 1 2 . 2 . . . . 2 1 . . . . Alerts 8 | . . . . . . . . 2 . . . . 1 . . 4 . . . . . . . . . 1 . . Weapon Failures 11 | . . . . . . . . 3 . . . 3 . 1 1 3 . . . . . . . . . . . . Overload Shots . | . . . . . . . . . . . . . . . . . . . . . . . . . . . . . Overflow Damage 739 | . . . 74 . . 9 7 100 . 150 34 36 64 19 . 10 . . . . 8 . . 217 . 11 . . Projectiles . | . . . . . . . . . . . . . . . . . . . . . . . . . . . . . Explosions 94 | . . . 15 . . 9 7 . . . . 36 . 19 . . . . . . 8 . . . . . . . Melee 645 | . . . 59 . . . . 100 . 150 34 . 64 . . 10 . . . . . . . 217 . 11 . . Knockbacks 3 | . . . 2 1 . . . . . . . . . . . . . . . . . . . . . . . . Impact 3 | . . . 2 1 . . . . . . . . . . . . . . . . . . . . . . . . Kinetic . | . . . . . . . . . . . . . . . . . . . . . . . . . . . . . Secondary . | . . . . . . . . . . . . . . . . . . . . . . . . . . . . . Self-Inflicted Damage 354 | . . . . . . 97 . 16 . 46 . . . . . 61 . . . . 134 . . . . . . . Shots 10 | . . . . . . 2 . 1 . 1 . . . . . 3 . . . . 3 . . . . . . . Rammed 38 | 1 4 5 13 3 . 3 4 2 1 . . 1 . . . . 1 . . . . . . . . . . . Targets Rammed 46 | 1 4 5 13 4 . 5 7 2 2 . . 2 . . . . 1 . . . . . . . . . . . Kicked . | . . . . . . . . . . . . . . . . . . . . . . . . . . . . . Crushed 8 | . . . . 1 . 2 3 . 1 . . 1 . . . . . . . . . . . . . . . . Highest Temperature 307 | 45 202 213 239 27 . 147 252 241 . 190 183 285 . 220 189 225 234 307 53 1 242 178 108 226 . 130 61 . Average Temperature 63 | 18 48 76 64 5 . 52 70 79 . 62 67 85 . 33 62 65 60 70 37 1 85 101 37 134 . 68 18 . Received Heat Transfer 3206 | . 192 69 411 . . 90 297 270 54 167 . 156 24 192 18 48 156 375 90 36 66 . 24 213 69 45 135 9 Effects 3 | . . . . . . . . . . . . . . . . 1 . 2 . . . . . . . . . . Energy Bleed 1 | . . . . . . . . . . . . . . . . 1 . . . . . . . . . . . . Interference 2 | . . . . . . . . . . . . . . . . . . 2 . . . . . . . . . . Siege Activations 16 | . . . . . . . . . . . . 4 . . . 1 . 3 . 2 3 . 2 1 . . . . Total Turns 319 | . . . . . . . . . . . . 104 . . . 17 . 50 . 34 57 . 29 28 . . . . Longest Duration 65 | . . . . . . . . . . . . 65 . . . 17 . 25 . 22 27 . 19 28 . . . . Martial Activations . | . . . . . . . . . . . . . . . . . . . . . . . . . . . . . Shielding Activations . | . . . . . . . . . . . . . . . . . . . . . . . . . . . . . Robots Disrupted . | . . . . . . . . . . . . . . . . . . . . . . . . . . . . . Combat Hostiles . | . . . . . . . . . . . . . . . . . . . . . . . . . . . . . Robots Corrupted 2 | . . . 1 . . . . 1 . . . . . . . . . . . . . . . . . . . . Combat Hostiles 1 | . . . . . . . . 1 . . . . . . . . . . . . . . . . . . . . Parts Fried 4 | . . . 1 . . . . 3 . . . . . . . . . . . . . . . . . . . . Impact Corruptions 7 | . . . 3 . . . . 2 . 2 . . . . . . . . . . . . . . . . . . Robots Melted 8 | . . . 1 . . . . . . . . . . . 1 1 . . 2 1 2 . . . . . . . Combat Hostiles 8 | . . . 1 . . . . . . . . . . . 1 1 . . 2 1 2 . . . . . . . Parts Melted 67 | . 5 1 11 1 . . . . . . . . . 2 4 10 5 11 . 2 11 . 3 1 . . . . Heat Transferred 27771 | 148 1998 444 4033 . . . . . . 560 . 80 . 2700 850 3554 2450 4825 759 1035 3097 . 829 372 . 37 . . Parts Sabotaged 3 | . . . . . . . . . . . . . . . . . . 3 . . . . . . . . . . Parts Stolen 4 | . . . . . . . . . . . . . . . . . . . . . 4 . . . . . . . Parts Stripped . | . . . . . . . . . . . . . . . . . . . . . . . . . . . . . Power Chain Reactions . | . . . . . . . . . . . . . . . . . . . . . . . . . . . . . Alert | -11 -10 -10 -9 -9 -9 -8 -8 -8 -7 -7 -7 -7 -6 -6 -6 -6 -5 -5 -4 -4 -4 -4 -3 -3 -3 -2 -2 -1 ------- Run | Yrd Mat Min Mat Min Exi Min Mat Gar Fac Gar Fac Gar Fac Gar Fac Gar Fac Gar Fac Upp Upp War Pro Res Arm Res Qua Acc Maximum Alert Level 5 | . 1 . 1 . . . 1 5 3 5 3 4 3 4 2 5 5 5 5 . . . . 1 1 . 2 1 Low Security (%) 38 | 100 70 100 64 100 . 100 68 4 . . . . . . . . . . . . . . . 27 86 100 53 . Level 1 15 | . 29 . 35 . . . 31 10 . . . . . 2 . 5 . . . . . . . 72 13 . 34 100 Level 2 11 | . . . . . . . . 18 43 14 43 21 60 44 100 29 . . . . . . . . . . 12 . Level 3 8 | . . . . . . . . 15 56 21 56 27 39 33 . 6 . . . . . . . . . . . . Level 4 15 | . . . . . . . . 40 . 53 . 50 . 19 . 24 84 10 23 . . . . . . . . . Level 5 8 | . . . . . . . . 10 . 10 . . . . . 33 8 89 . . . . . . . . . . High Security . | . . . . . . . . . . . . . . . . . 6 . 75 . . . . . . . . . Max Security . | . . . . . . . . . . . . . . . . . . . . . . . . . . . . . Peak Influence 2904 | 10 307 90 355 60 . 165 336 1860 1033 1883 1004 1592 864 1179 618 2079 1885 2904 1839 . . . . 358 223 193 491 235 Initial 1524 | . . 90 9 60 . . 56 155 976 459 988 451 817 353 618 316 1091 1319 1524 . . . . 300 165 96 33 200 Average 627 | 1 120 13 160 5 . 65 141 981 843 1222 836 1078 657 772 513 1206 1420 2364 1735 . . . . 219 173 111 194 215 Influence Increases 18363 | 15 745 98 1286 75 . 497 969 1855 199 1764 92 1442 206 846 146 1833 1114 1675 365 205 302 . 105 1195 198 323 701 112 Destroy 0b10 Robot/C 8660 | . 400 80 780 40 . 280 580 940 120 740 20 800 80 640 100 1000 400 740 60 180 280 . 80 180 60 80 . . Destroy 0b10 Robot/NC 600 | 15 50 5 110 25 . 35 100 5 10 45 5 . 25 35 . 5 55 5 . . . . 5 50 . . . 15 Destroy Leader 1130 | . 80 10 222 10 . 40 138 40 22 30 10 40 40 30 20 80 116 50 10 10 20 . 20 58 10 20 . 4 Allied During Kill 1407 | . . 2 . . . . 3 157 19 108 . 68 21 15 . 242 349 413 8 . 2 . . . . . . . Trap Triggered on 0b10 60 | . 60 . . . . . . . . . . . . . . . . . . . . . . . . . . . Successful Hack 521 | . 17 . 45 . . . 58 12 . 14 26 32 . 14 26 14 12 14 . . . . . 27 33 94 65 18 Select Force Hacks 150 | . 60 . 60 . . . 30 . . . . . . . . . . . . . . . . . . . . . Disable Machine 750 | . . . 15 . . 105 15 15 . 105 15 45 . . . 30 60 15 135 . . . . . 60 . 90 45 Anti-Garrison Action 2050 | . . . . . . . . 600 . 500 . 400 . 50 . 200 . 300 . . . . . . . . . . Destroy Structure 1160 | . 3 1 39 . . 37 15 71 13 177 1 42 40 32 . 187 122 138 152 . . . . 40 20 9 21 . Advance Influence 300 | . . . . . . . . . . . . . . . . . . . . . . . . 300 . . . . Partial Spotted 75 | . . . . . . . . . . . . . . . . . . . . . . . . 45 . . 15 15 Lose Combat Pursuer 1500 | . 75 . 15 . . . 30 15 15 45 15 15 . 30 . 75 . . . 15 . . . 495 15 120 510 15 Influence Decreases 18131 | 15 512 307 1154 231 . 351 876 234 1402 538 1330 529 1259 172 873 206 1308 656 1430 1261 805 280 105 878 332 447 426 214 Entered New Map 8633 | . . 143 15 96 . . 90 84 884 198 895 194 741 152 561 136 988 566 1380 681 150 280 . . 152 87 26 134 Time Decay 6023 | 15 492 159 659 125 . 351 616 . 198 . 160 . 318 . 302 . 310 . 30 550 565 . 95 498 150 120 230 80 Search Patrol Dispatched 200 | . . . . . . . . . . . . . . . . . . . . . . . . 200 . . . . Lost Part 580 | . 20 . 30 10 . . 10 . . 50 . . . . 10 10 10 70 . . 50 . 10 160 30 90 20 . Lost Ally 795 | . . 5 . . . . 10 150 20 290 . 60 50 20 . 60 . 20 20 30 40 . . 20 . . . . Purge Threat 1900 | . . . 450 . . . 150 . 300 . 275 275 150 . . . . . . . . . . . . 150 150 . Squads Dispatched 56 | . 3 . 5 1 . . 5 . 2 . 1 . 3 . 1 . 8 . 8 . 1 . . 7 2 2 7 . Investigation 15 | . 2 . 2 . . . 3 . 1 . 1 . . . . . . . . . . . . 1 . . 5 . Extermination 10 | . . . . . . . . . . . . . 1 . 1 . 1 . . . . . . 3 1 1 2 . Reinforcement 15 | . 1 . 3 1 . . 2 . 1 . . . . . . . 2 . . . . . . 3 1 1 . . Assault 13 | . . . . . . . . . . . . . 2 . . . 2 . 8 . 1 . . . . . . . Garrison 3 | . . . . . . . . . . . . . . . . . 3 . . . . . . . . . . . Intercept . | . . . . . . . . . . . . . . . . . . . . . . . . . . . . . Searches Triggered 2 | . . . . . . . . . . . . . . . . . . . . . . . . 2 . . . . Construction Impeded 2 | . . . . 1 . . . . . . . . . . . . . . . . . . . 1 . . . . Haulers Reinforced 1 | . . . . . . . . . . . . . . . . . 1 . . . . . . . . . . . Active Scanning Responses . | . . . . . . . . . . . . . . . . . . . . . . . . . . . . . Cargo Convoy Interrupts . | . . . . . . . . . . . . . . . . . . . . . . . . . . . . . Alert ID Control Effect 1 | . . . . . . . . . . . . . . . . . . . . 1 . . . . . . . . Stealth | -11 -10 -10 -9 -9 -9 -8 -8 -8 -7 -7 -7 -7 -6 -6 -6 -6 -5 -5 -4 -4 -4 -4 -3 -3 -3 -2 -2 -1 --------- Run | Yrd Mat Min Mat Min Exi Min Mat Gar Fac Gar Fac Gar Fac Gar Fac Gar Fac Gar Fac Upp Upp War Pro Res Arm Res Qua Acc Distress Signals 20 | . . . 3 . . . 5 . . 1 1 . . . . . 1 . . . . . . 3 . . 6 . Communications Jammed 6 | . . . . . . . . . . . . . 1 . 2 . 3 . . . . . . . . . . . Distress Signals 4 | . . . . . . . . . . . . . 1 . . . 3 . . . . . . . . . . . Times Spotted 627 | . 30 4 50 2 . 12 45 44 4 35 3 40 6 32 5 48 20 44 4 12 21 . 6 53 24 27 52 4 Peak Tracking Total 28 | . 3 2 6 2 . 4 5 4 3 7 2 5 1 5 4 9 4 6 3 4 4 . 2 9 28 10 12 3 Tactical Retreats 48 | . 4 . 1 . . . 2 1 1 3 1 1 . 1 . 3 . . . 1 . . . 12 1 6 9 1 ECM-based Alert Blocks 5 | . . . . . . . . . . . . . . . . . . . . . . . . . . 5 . . Traps | -11 -10 -10 -9 -9 -9 -8 -8 -8 -7 -7 -7 -7 -6 -6 -6 -6 -5 -5 -4 -4 -4 -4 -3 -3 -3 -2 -2 -1 ------- Run | Yrd Mat Min Mat Min Exi Min Mat Gar Fac Gar Fac Gar Fac Gar Fac Gar Fac Gar Fac Upp Upp War Pro Res Arm Res Qua Acc Traps Triggered 23 | . 1 . . . . . 2 5 . 4 . 3 1 . 2 1 . . . . . . . . . . 3 1 Indirectly . | . . . . . . . . . . . . . . . . . . . . . . . . . . . . . Trap Hack Attempts 95 | . 78 . 12 . . . . 4 . 1 . . . . . . . . . . . . . . . . . . Triggered . | . . . . . . . . . . . . . . . . . . . . . . . . . . . . . Disarmed 3 | . 2 . 1 . . . . . . . . . . . . . . . . . . . . . . . . . Reprogrammed 10 | . 7 . . . . . . 2 . 1 . . . . . . . . . . . . . . . . . . Reused 6 | . 6 . . . . . . . . . . . . . . . . . . . . . . . . . . . Traps Extracted . | . . . . . . . . . . . . . . . . . . . . . . . . . . . . . Installed . | . . . . . . . . . . . . . . . . . . . . . . . . . . . . . Triggered 6 | . 6 . . . . . . . . . . . . . . . . . . . . . . . . . . . Machines | -11 -10 -10 -9 -9 -9 -8 -8 -8 -7 -7 -7 -7 -6 -6 -6 -6 -5 -5 -4 -4 -4 -4 -3 -3 -3 -2 -2 -1 ---------- Run | Yrd Mat Min Mat Min Exi Min Mat Gar Fac Gar Fac Gar Fac Gar Fac Gar Fac Gar Fac Upp Upp War Pro Res Arm Res Qua Acc Machines Disabled 66 | . . . 1 . . 7 1 3 . 9 1 10 . 1 . 4 4 3 9 . . . . . 4 . 6 3 Max in Single Turn 3 | . . . 1 . . 3 1 2 . 2 1 1 . 1 . 1 . 1 . . . . . . 1 . 1 1 Garrison Access 6 | . . . . . . . . . . . . . . . . . . . . . . . . 2 . 2 1 1 Garrison Relay 13 | . . . . . . . . 2 . 2 . 5 . . . 1 . 3 . . . . . . . . . . Phase Generator 1 | . . . . . . . . . . . . . . 1 . . . . . . . . . . . . . . Machines Repaired . | . . . . . . . . . . . . . . . . . . . . . . . . . . . . . Machines Dismantled 3 | . . . . . . . . . . . . . . 1 . . . . . . . . . . . . . 2 Machines Sabotaged . | . . . . . . . . . . . . . . . . . . . . . . . . . . . . . Overloaded Fab Kills . | . . . . . . . . . . . . . . . . . . . . . . . . . . . . . Hacking | -11 -10 -10 -9 -9 -9 -8 -8 -8 -7 -7 -7 -7 -6 -6 -6 -6 -5 -5 -4 -4 -4 -4 -3 -3 -3 -2 -2 -1 --------- Run | Yrd Mat Min Mat Min Exi Min Mat Gar Fac Gar Fac Gar Fac Gar Fac Gar Fac Gar Fac Upp Upp War Pro Res Arm Res Qua Acc Machines Accessed 106 | . 10 1 15 . 2 . 13 2 3 2 5 3 4 1 4 2 2 3 1 . 1 . . 8 3 7 11 3 Terminals 62 | . 7 . 9 . . . 9 2 2 2 3 3 2 1 2 2 . 3 . . . . . 2 2 3 6 2 Fabricators 2 | . . . . . . . . . . . . . . . . . . . . . . . . 1 1 . . . Repair Stations 11 | . 1 . 2 . . . 1 . . . 1 . . . 1 . . . 1 . . . . 2 . . 2 . Recycling Units 5 | . 2 . 2 . . . 1 . . . . . . . . . . . . . . . . . . . . . Scanalyzers 10 | . . . 2 . . . 1 . . . . . 1 . . . 1 . . . . . . 1 . 2 2 . Garrison Access 12 | . . . . . . . 1 . 1 . 1 . 1 . 1 . 1 . . . . . . 2 . 2 1 1 Total Hacks 277 | . 30 1 54 . 2 . 44 8 8 3 9 9 6 1 10 5 2 8 3 . 1 . . 12 13 19 24 5 Successful 150 | . 17 1 38 . 2 . 26 1 3 2 3 3 3 1 3 1 2 1 2 . 1 . . 6 7 13 12 2 Failed 127 | . 13 . 16 . . . 18 7 5 1 6 6 3 . 7 4 . 7 1 . . . . 6 6 6 12 3 Catastrophic 29 | . . . 3 . . . 1 1 1 1 3 2 2 . 2 2 . 3 . . . . . 1 . 1 4 2 Database Lockouts . | . . . . . . . . . . . . . . . . . . . . . . . . . . . . . Manual 113 | . 25 . 27 . 1 . 32 1 5 1 . 1 . . 2 1 . . . . . . . 5 3 3 5 1 Terminals 191 | . 24 . 38 . . . 36 8 6 3 6 9 3 1 5 5 . 8 . . . . . 4 9 7 15 4 Fabricators 6 | . . . . . . . . . . . . . . . . . . . . . . . . 2 4 . . . Repair Stations 29 | . 2 . 9 . . . 3 . . . 2 . . . 3 . . . 3 . . . . 3 . . 4 . Recycling Units 7 | . 4 . 2 . . . 1 . . . . . . . . . . . . . . . . . . . . . Scanalyzers 23 | . . . 5 . . . 1 . . . . . 2 . . . 1 . . . . . . 1 . 9 4 . Garrison Access 17 | . . . . . . . 3 . 2 . 1 . 1 . 2 . 1 . . . . . . 2 . 3 1 1 Terminal Hacks 56 | . 5 1 12 . 2 . 9 1 2 2 . 3 1 1 1 1 . 1 . . 1 . . 2 3 3 4 1 Record 3 | . . . 1 . 1 . . . . . . . . . . . . . . . . . . . . . 1 . Part Schematic 3 | . 1 . 1 . . . . . . . . . . . . . . . . . . . . . . . 1 . Robot Schematic 1 | . 1 . . . . . . . . . . . . . . . . . . . . . . . . . . . Robot Analysis 2 | . . . 2 . . . . . . . . . . . . . . . . . . . . . . . . . Prototype ID Bank 3 | . 1 . . . . . 1 . . . . . . . 1 . . . . . . . . . . . . . Open Door 4 | . . 1 . . . . . . . 1 . 1 . . . . . . . . 1 . . . . . . . Level Access Points 2 | . . . . . . . . . . . . . . . . . . . . . . . . . . 1 . 1 Branch Access Points 3 | . . . 1 . . . . . . . . . . . . . . . . . . . . 1 . 1 . . Emergency Access Points 5 | . . . 1 . . . . 1 . 1 . 1 . . . 1 . . . . . . . . . . . . Terminal Index 4 | . 1 . 1 . . . 1 . . . . . . . . . . . . . . . . . 1 . . . Unreport Threat 9 | . . . 3 . . . 1 . 2 . . . 1 . . . . . . . . . . . . 1 1 . Locate Traps 4 | . 1 . . . . . 2 . . . . . . . . . . . . . . . . . 1 . . . Hauler Manifests 1 | . . . . . . . 1 . . . . . . . . . . . . . . . . . . . . . Registered Components 1 | . . . . . . . 1 . . . . . . . . . . . . . . . . . . . . . Zone Layout 7 | . . . 2 . . . 2 . . . . . . . . . . . . . . . . 1 1 . 1 . Garrison Registry 2 | . . . . . . . . . . . . 1 . 1 . . . . . . . . . . . . . . Patrol Navigation 1 | . . . . . . . . . . . . . . . . . . 1 . . . . . . . . . . Proto ID Catalog 1 | . . . . . 1 . . . . . . . . . . . . . . . . . . . . . . . Fabricator Hacks 3 | . . . . . . . . . . . . . . . . . . . . . . . . 1 2 . . . Network Status 1 | . . . . . . . . . . . . . . . . . . . . . . . . . 1 . . . Build 2 | . . . . . . . . . . . . . . . . . . . . . . . . 1 1 . . . Repair Station Hacks 18 | . 2 . 8 . . . 1 . . . 2 . . . 1 . . . 2 . . . . . . . 2 . Scan Component 10 | . 1 . 4 . . . 1 . . . 1 . . . 1 . . . 1 . . . . . . . 1 . Repair 8 | . 1 . 4 . . . . . . . 1 . . . . . . . 1 . . . . . . . 1 . Recycling Unit Hacks . | . . . . . . . . . . . . . . . . . . . . . . . . . . . . . Scanalyzer 14 | . . . 4 . . . 1 . . . . . 1 . . . 1 . . . . . . . . 6 1 . Retrieve Study 14 | . . . 4 . . . 1 . . . . . 1 . . . 1 . . . . . . . . 6 1 . Garrison Access Hacks 13 | . . . . . . . 1 . 1 . 1 . 1 . 1 . 1 . . . . . . 2 . 3 1 1 Unlock Access 6 | . . . . . . . 1 . 1 . 1 . 1 . 1 . 1 . . . . . . . . . . . Seal Access 6 | . . . . . . . . . . . . . . . . . . . . . . . . 2 . 2 1 1 Coupler Status 1 | . . . . . . . . . . . . . . . . . . . . . . . . . . 1 . . Unauthorized Hacks 46 | . 10 . 14 . . . 14 . . . . . . . . . . . . . . . . 1 2 1 4 . Terminals 36 | . 8 . 12 . . . 12 . . . . . . . . . . . . . . . . . 2 1 1 . Track 1 | . . . . . . . . . . . . . . . . . . . . . . . . . . . 1 . Assimilate 8 | . 2 . 1 . . . 4 . . . . . . . . . . . . . . . . . . 1 . . Botnet 7 | . 1 . 3 . . . 2 . . . . . . . . . . . . . . . . . 1 . . . Operators 5 | . 1 . 2 . . . 1 . . . . . . . . . . . . . . . . . 1 . . . Skim 15 | . 4 . 6 . . . 5 . . . . . . . . . . . . . . . . . . . . . Fabricators . | . . . . . . . . . . . . . . . . . . . . . . . . . . . . . Repair Stations 3 | . . . . . . . . . . . . . . . . . . . . . . . . 1 . . 2 . Patch 3 | . . . . . . . . . . . . . . . . . . . . . . . . 1 . . 2 . Recycling Units 5 | . 2 . 2 . . . 1 . . . . . . . . . . . . . . . . . . . . . Tunnel 5 | . 2 . 2 . . . 1 . . . . . . . . . . . . . . . . . . . . . Scanalyzers 1 | . . . . . . . . . . . . . . . . . . . . . . . . . . . 1 . Researchers 1 | . . . . . . . . . . . . . . . . . . . . . . . . . . . 1 . Garrison Access 1 | . . . . . . . 1 . . . . . . . . . . . . . . . . . . . . . Reprogram 1 | . . . . . . . 1 . . . . . . . . . . . . . . . . . . . . . Data Cores Recovered 1 | . . . . . . . . . . . . . 1 . . . . . . . . . . . . . . . Used . | . . . . . . . . . . . . . . . . . . . . . . . . . . . . . Hacking Detections 83 | . 9 . 13 . . . 11 2 3 1 5 2 3 1 4 2 . 3 . . . . . 5 3 6 8 2 Full Trace Events 6 | . . . . . . . 1 . 1 . 1 . . . . . . 2 . . . . . . . . 1 . Feedback Events . | . . . . . . . . . . . . . . . . . . . . . . . . . . . . . Feedback Blocked . | . . . . . . . . . . . . . . . . . . . . . . . . . . . . . Robot Schematics Acquired 1 | . 1 . . . . . . . . . . . . . . . . . . . . . . . . . . . Robots Built 1 | . . . . . . . . . . . . . . . . . . . . . . . . 1 . . . . Authchips . | . . . . . . . . . . . . . . . . . . . . . . . . . . . . . Time 62 | . . . . . . . . . . . . . . . . . . . . . . . . 62 . . . . Total Robot Build Rating 7 | . . . . . . . . . . . . . . . . . . . . . . . . 7 . . . . Part Schematics Acquired 3 | . 1 . 1 . . . . . . . . . . . . . . . . . . . . . . . 1 . Parts Built 2 | . . . . . . . . . . . . . . . . . . . . . . . . . 2 . . . Authchips . | . . . . . . . . . . . . . . . . . . . . . . . . . . . . . Time 69 | . . . . . . . . . . . . . . . . . . . . . . . . . 69 . . . Total Part Build Rating 18 | . . . . . . . . . . . . . . . . . . . . . . . . . 18 . . . Part Studies Acquired 14 | . . . 4 . . . 1 . . . . . 1 . . . 1 . . . . . . . . 6 1 . Parts Repaired 8 | . 1 . 4 . . . . . . . 1 . . . . . . . 1 . . . . . . . 1 . Time 360 | . 26 . 122 . . . . . . . 30 . . . . . . . 74 . . . . . . . 108 . Parts Recycled . | . . . . . . . . . . . . . . . . . . . . . . . . . . . . . Recycled Matter . | . . . . . . . . . . . . . . . . . . . . . . . . . . . . . Retrieved Matter . | . . . . . . . . . . . . . . . . . . . . . . . . . . . . . Retrieved Components . | . . . . . . . . . . . . . . . . . . . . . . . . . . . . . Parts Scanalyzed . | . . . . . . . . . . . . . . . . . . . . . . . . . . . . . Part Schematics Acquired . | . . . . . . . . . . . . . . . . . . . . . . . . . . . . . Parts Damaged . | . . . . . . . . . . . . . . . . . . . . . . . . . . . . . Bothacking | -11 -10 -10 -9 -9 -9 -8 -8 -8 -7 -7 -7 -7 -6 -6 -6 -6 -5 -5 -4 -4 -4 -4 -3 -3 -3 -2 -2 -1 ------------ Run | Yrd Mat Min Mat Min Exi Min Mat Gar Fac Gar Fac Gar Fac Gar Fac Gar Fac Gar Fac Upp Upp War Pro Res Arm Res Qua Acc Used RIF Installer 7 | . . . . . . . . 1 . 1 . 1 . 2 . 1 . 1 . . . . . . . . . . Zone Cloak 1 | . . . . . . . . . . 1 . . . . . . . . . . . . . . . . . . Robot Detection 1 | . . . . . . . . . . . . 1 . . . . . . . . . . . . . . . . Patrol Navigation 1 | . . . . . . . . . . . . . . . . 1 . . . . . . . . . . . . Alert ID Control 1 | . . . . . . . . . . . . . . . . . . 1 . . . . . . . . . . Program Shield 1 | . . . . . . . . . . . . . . 1 . . . . . . . . . . . . . . Autooverride 1 | . . . . . . . . . . . . . . 1 . . . . . . . . . . . . . . Robots Hacked 31 | . . . . 1 4 . . . 1 1 1 4 . . . 3 6 . 3 1 6 . . . . . . . Non-combat 16 | . . . . . 3 . . . 1 . 1 3 . . . . 6 . 1 . 1 . . . . . . . Combat 15 | . . . . 1 1 . . . . 1 . 1 . . . 3 . . 2 1 5 . . . . . . . Autooverrided 1 | . . . . . . . . . . . . . . . . . . . . . 1 . . . . . . . Robot Hacks Applied 37 | . . . . 1 4 . . . 1 1 3 6 . . . 3 7 . 4 1 5 . 1 . . . . . parse_system 10 | . . . . 1 4 . . . . 1 . . . . . 3 . . . . 1 . . . . . . . find_chute 2 | . . . . . . . . . 1 . . . . . . . 1 . . . . . . . . . . . map_walls 1 | . . . . . . . . . . . . . . . . . 1 . . . . . . . . . . . drop_inventory 2 | . . . . . . . . . . . . . . . . . 2 . . . . . . . . . . . find_station 2 | . . . . . . . . . . . . . . . . . 1 . 1 . . . . . . . . . purge_threat 4 | . . . . . . . . . . . 2 2 . . . . . . . . . . . . . . . . find_garrison 1 | . . . . . . . . . . . . . . . . . . . 1 . . . . . . . . . overwrite_iff 5 | . . . . . . . . . . . . . . . . . . . 1 1 3 . . . . . . . formatsys_low 9 | . . . . . . . . . . . 1 3 . . . . 2 . 1 . 1 . 1 . . . . . formatsys_high 1 | . . . . . . . . . . . . 1 . . . . . . . . . . . . . . . . Relay Couplers Released 57 | . . . . . . . . 7 . 14 . 19 . . . 5 . 12 . . . . . . . . . . Machine Destruction 53 | . . . . . . . . 7 . 10 . 19 . . . 5 . 12 . . . . . . . . . . Programmers 4 | . . . . . . . . . . 4 . . . . . . . . . . . . . . . . . . Attached 6 | . . . . . . . . . . . 1 2 . . . . 1 . 2 . . . . . . . . . Fabnet Peak Effective % . | . . . . . . . . . . . . . . . . . . . . . . . . . . . . . Robots Rewired 39 | . . . . . . . . 12 . 15 . 5 . . . 7 . . . . . . . . . . . . Allies Hacked 6 | . . . . . . . . 2 . 1 . 1 . . . . . 2 . . . . . . . . . . Hacks Repelled . | . . . . . . . . . . . . . . . . . . . . . . . . . . . . . Allies | -11 -10 -10 -9 -9 -9 -8 -8 -8 -7 -7 -7 -7 -6 -6 -6 -6 -5 -5 -4 -4 -4 -4 -3 -3 -3 -2 -2 -1 -------- Run | Yrd Mat Min Mat Min Exi Min Mat Gar Fac Gar Fac Gar Fac Gar Fac Gar Fac Gar Fac Upp Upp War Pro Res Arm Res Qua Acc Total Allies 69 | . 1 2 . 4 . . 4 12 . 16 1 9 . . . 9 2 . 2 1 5 . . 1 . . . . Largest Group 11 | . 1 3 1 5 . . 3 7 4 11 1 6 5 1 . 8 5 5 2 1 2 1 1 1 . . . . Highest-Rated Group 566 | . 10 68 10 81 . . 41 180 108 173 26 209 184 85 . 566 400 400 130 58 105 35 35 45 . . . . Highest-Rated Ally 148 | . 10 31 10 31 . . 21 40 40 40 26 85 85 85 . 148 119 119 116 58 58 35 35 45 . . . . Total Orders 108 | . 6 4 26 1 . . 2 11 . 6 2 24 1 . . 4 5 12 1 1 1 . 1 . . . . . STAY 43 | . 3 2 13 1 . . 1 6 . 3 1 8 . . . . 1 4 . . . . . . . . . . ROAM 2 | . . . . . . . . . . . . . . . . 2 . . . . . . . . . . . . FOLLOW 43 | . 3 2 13 . . . 1 5 . 3 1 8 . . . 2 1 4 . . . . . . . . . . AID 20 | . . . . . . . . . . . . 8 1 . . . 3 4 1 1 1 . 1 . . . . . Ally Attacks 449 | . . 4 . 25 . . 8 93 8 71 . 23 13 10 . 83 46 47 4 3 11 . . . . . . . Total Damage 14224 | . . 41 . 263 . . 199 1773 174 1006 . 1096 356 529 . 2998 2206 2472 648 114 349 . . . . . . . Kills 116 | . . . . . . . 1 20 3 9 . 10 5 6 . 21 22 18 . 1 . . . . . . . . Allies Corrupted 2 | . . . . . . . . . . 1 . . . . . . . 1 . . . . . . . . . . Allies Melted . | . . . . . . . . . . . . . . . . . . . . . . . . . . . . . Intel | -11 -10 -10 -9 -9 -9 -8 -8 -8 -7 -7 -7 -7 -6 -6 -6 -6 -5 -5 -4 -4 -4 -4 -3 -3 -3 -2 -2 -1 ------- Run | Yrd Mat Min Mat Min Exi Min Mat Gar Fac Gar Fac Gar Fac Gar Fac Gar Fac Gar Fac Upp Upp War Pro Res Arm Res Qua Acc Active Infowar (turns) 24794 | 40 2422 1183 4359 1560 666 47 . . 406 1877 303 1602 701 1104 663 589 674 843 137 235 1372 181 1283 1327 312 246 492 170 Optics 3815 | . . . . . . . . . . . . . . . . . . . . . . . 1268 1327 312 246 492 170 Sensors 1369 | . . . . . . . . . . . . . . . . . . . . . . . . 618 295 . 396 60 Seismic 20922 | 40 2422 1183 4359 1560 666 47 . . 406 1877 303 1586 701 696 626 408 610 751 137 235 1372 181 407 349 . . . . T.N.C. 325 | . . . . . . . . . . . . . . . . . . . . . . . . 286 39 . . . Machine Analysis 1561 | . . . . . . . . . . . . . . . . . . . . . . . . 341 312 246 492 170 Triangulation 1038 | . . . . . . . . . . . . . . . . . . . . . . . . . 130 246 492 170 Cloaking 267 | . . . . . . . . . . . . . . . . . . . . . . . . . 257 10 . . Jamming 3845 | . . . . . . . . . . . . 16 701 1104 663 312 289 757 3 . . . . . . . . . ECM 75 | . . . . . . . . . . . . . . . . . . . . . . . . . . 75 . . Robot Analysis Total 2 | . . . 2 . . . . . . . . . . . . . . . . . . . . . . . . . Derelict Logs Recovered 8 | . . 2 . 2 . . . . . . . . . . . . . . . 2 2 . . . . . . . Drone Launches . | . . . . . . . . . . . . . . . . . . . . . . . . . . . . . Drone Recoveries . | . . . . . . . . . . . . . . . . . . . . . . . . . . . . . Exploration | -11 -10 -10 -9 -9 -9 -8 -8 -8 -7 -7 -7 -7 -6 -6 -6 -6 -5 -5 -4 -4 -4 -4 -3 -3 -3 -2 -2 -1 ------------- Run | Yrd Mat Min Mat Min Exi Min Mat Gar Fac Gar Fac Gar Fac Gar Fac Gar Fac Gar Fac Upp Upp War Pro Res Arm Res Qua Acc Turns Passed 36630 | 105 2434 1219 4359 1560 666 1362 3118 2414 407 2285 337 1977 701 1104 663 1815 735 1790 300 1586 1682 181 1283 1327 312 246 492 170 Spaces Moved 20751 | 44 1202 694 1871 748 328 634 1302 991 186 910 169 952 402 472 328 883 367 912 142 924 915 112 736 1963 579 471 1215 299 Core 68 | 5 . . . . . . . . . . . . . . . . . . . . . . . 63 . . . . Treads 16405 | 39 1202 694 1871 748 328 634 1302 991 186 910 169 952 402 472 328 883 367 912 142 924 915 112 736 186 . . . . Legs . | . . . . . . . . . . . . . . . . . . . . . . . . . . . . . Wheels . | . . . . . . . . . . . . . . . . . . . . . . . . . . . . . Hover . | . . . . . . . . . . . . . . . . . . . . . . . . . . . . . Flight 4278 | . . . . . . . . . . . . . . . . . . . . . . . . 1714 579 471 1215 299 Fastest Speed 29 | 50 160 160 160 200 200 200 200 200 200 160 160 160 160 160 160 160 160 160 160 160 160 160 160 35 35 29 32 31 Average Speed 145 | 147 160 160 181 200 200 200 200 203 200 195 160 160 160 160 160 160 160 160 160 160 160 160 160 49 35 32 32 31 Slowest Speed 240 | 160 160 160 240 200 200 200 240 240 200 213 160 160 160 160 160 160 160 160 160 160 160 160 160 160 35 39 114 31 Overloaded Moves . | . . . . . . . . . . . . . . . . . . . . . . . . . . . . . Propulsion Burnouts . | . . . . . . . . . . . . . . . . . . . . . . . . . . . . . Robots Hopped 31 | . . . . . . . . . . . . . . . . . . . . . . . . 10 2 7 9 3 Potential Cave-ins 2 | . . . . . . . . . . . . . . . . . . . . . . . . . 2 . . . Cave-ins Triggered . | . . . . . . . . . . . . . . . . . . . . . . . . . . . . . Teleports 1 | . . . . . . . . . . . . . . . . . . . . . . . . . . . 1 . Exploration Rate (%) 56 | 4 98 98 98 94 71 99 65 96 6 87 5 65 9 50 5 91 14 87 4 93 93 19 93 47 34 15 74 12 Regions Visited 28 Branch Regions 10 Pre-discovered Areas 14 | . 2 1 6 . 1 . 2 . . . . . . . . . . . . 1 1 . . . . . . . Known Exits Taken 11 | . . . 1 . . 1 1 . 1 . 1 . 1 . 1 . 1 . . . . . . 1 . 1 1 . Unknown Exits Taken 11 | 1 1 1 . 1 1 . . . . . . . . . . . . . 1 1 1 1 1 . 1 . . . Scrap Searched 12 | . . 1 . 1 . 1 . . . . . . . . . . . . . 3 3 . 3 . . . . . Spaces Dug 151 | . 1 . 13 . . . . 5 . 20 1 10 3 8 . 23 2 15 . . 8 . 6 16 11 2 7 . Terrain Destroyed 429 | . 1 . 46 . . 47 15 21 12 63 1 16 3 8 . 67 2 16 . 9 44 . 13 22 14 2 7 . Melee 117 | . . . 2 . . . . 4 . 20 1 10 3 8 . 21 2 15 . . . . . 13 9 2 7 . Projectile 55 | . 1 . . . . . . . 1 . . 1 . . . . . 1 . 9 19 . 13 5 5 . . . AOE 257 | . . . 44 . . 47 15 17 11 43 . 5 . . . 46 . . . . 25 . . 4 . . . . Terrain Rammed . | . . . . . . . . . . . . . . . . . . . . . . . . . . . . . Walls Destroyed . | . . . . . . . . . . . . . . . . . . . . . . . . . . . . . Machines Disabled . | . . . . . . . . . . . . . . . . . . . . . . . . . . . . . Actions | -11 -10 -10 -9 -9 -9 -8 -8 -8 -7 -7 -7 -7 -6 -6 -6 -6 -5 -5 -4 -4 -4 -4 -3 -3 -3 -2 -2 -1 --------- Run | Yrd Mat Min Mat Min Exi Min Mat Gar Fac Gar Fac Gar Fac Gar Fac Gar Fac Gar Fac Upp Upp War Pro Res Arm Res Qua Acc Total 24904 | 66 1579 775 2571 783 337 691 1637 1248 211 1200 216 1250 436 660 446 1125 468 1115 188 1001 1042 114 796 2181 643 510 1273 342 Wait 1601 | 3 182 50 404 5 . 19 169 48 7 39 26 126 4 60 95 72 36 75 14 31 35 3 18 52 13 2 13 . Move 20665 | 44 1201 693 1870 747 327 633 1301 990 185 909 168 951 401 471 327 882 366 911 141 923 914 111 735 1942 574 459 1196 293 Hop 27 | . . . . . . . . . . . . . . . . . . . . . . . . 10 2 4 9 2 Pick Up 180 | 4 19 3 31 3 2 1 7 10 2 16 . 10 4 2 1 4 6 12 3 5 5 . 4 12 3 2 8 1 Fast Attach 137 | 7 1 . 8 . . 1 5 4 . 6 1 4 . 5 5 3 2 6 . 7 7 . 2 34 8 10 8 3 Attach 72 | . 2 . 6 2 . . 3 . 2 5 . 3 2 . 2 2 5 9 2 . 6 . 3 10 . 3 4 1 Detach 23 | . . . 1 . . . . . . . . . . . . 2 2 2 . . 1 . 2 7 2 . 4 . Swap 384 | 1 15 5 36 5 2 7 17 39 6 36 7 40 10 13 2 45 18 23 10 6 13 . 5 14 3 2 3 1 Drop 237 | . 10 4 41 1 2 3 19 17 1 24 1 13 2 7 6 4 7 7 2 14 7 . 1 28 9 2 5 . Fire 982 | 7 66 15 145 14 . 22 109 63 5 66 9 80 9 48 8 68 23 44 16 15 54 . 26 35 16 14 5 . Melee 389 | . 1 . 4 2 4 . . 61 1 90 4 20 4 44 . 42 2 26 . . . . . 37 13 12 18 4 Ram . | . . . . . . . . . . . . . . . . . . . . . . . . . . . . . Kick . | . . . . . . . . . . . . . . . . . . . . . . . . . . . . . Crush 45 | . 4 5 13 4 . 5 7 2 2 . . 2 . . . . 1 . . . . . . . . . . . Escape Stasis 33 | . . . . . . . . 10 . 8 . . . . . . . . . . . . . . . . . 15 Rewire 3 | . . . . . . . . . . . . 1 . 1 . 1 . . . . . . . . . . . . Trap 95 | . 78 . 12 . . . . 4 . 1 . . . . . . . . . . . . . . . . . . Miscellaneous 31 | . . . . . . . . . . . . . . 9 . . . . . . . . . . . . . 22 Route ------- -11/Scrapyard -10/Materials (discovered 4 exits: *Mat x3 / *Min) -10/Mines (discovered 2 exits: *Mat x2) -9/Materials (discovered 5 exits: *Mat x3 / *Min x2) -9/Mines (discovered 4 exits: *Mat x2 / *Exi / [*Zio]) -9/Exiles (discovered 2 exits: [*Min x2]) -8/Mines (discovered 2 exits: *Mat x2) -8/Materials (discovered 4 exits: *Fac x3 / Gar) -8/Garrison (discovered 3 exits: *Fac x3) -7/Factory (discovered 4 exits: [*Sto] / Low x2 / Gar) -7/Garrison (discovered 3 exits: *Fac x3) -7/Factory -7/Garrison (discovered 3 exits: *Fac x3) -6/Factory -6/Garrison (discovered 3 exits: *Fac x3) -6/Factory (discovered 2 exits: [*Low] / Gar) -6/Garrison (discovered 3 exits: *Fac x3) -5/Factory (discovered 3 exits: *Fac / [*Upp] / Gar) -5/Garrison (discovered 3 exits: *Fac x3) -4/Factory -4/Upper Caves -4/Upper Caves (discovered 2 exits: *Res / [*War]) -4/Warlord -3/Proximity Caves -3/Research (discovered 3 exits: *Arm / Tes x2) -3/Armory -2/Research (discovered 5 exits: Acc x3 / *Qua x2) -2/Quarantine -1/Access To Epsilon Eridani History --------- Turn | Location | Event 7 | -11/Scrapyard | Discovered new exit (range 15) 106 | -11/Scrapyard | Entered Materials 315 | -10/Materials | Build established: Mutant 608 | -10/Materials | Discovered new exit (range 13) 655 | -10/Materials | Discovered new exit (range 7) 954 | -10/Materials | Discovered new exit (range 7) 1167 | -10/Materials | Discovered new exit (range 8) 1487 | -10/Materials | Core integrity fell below 50% 1878 | -10/Materials | Core integrity fell below 20% 2073 | -10/Materials | Repaired Lgt. Treads 2540 | -10/Materials | Entered Mines 2540 | -10/Mines | Accompanied by 1 ally 2546 | -10/Mines | Met a Derelict who couldn't figure out how to use a Trap Extractor 2653 | -10/Mines | Learned Materials emergency access door positions 3009 | -10/Mines | Learned 2 Materials zone layouts 3025 | -10/Mines | Discovered new exit (range 9) 3381 | -10/Mines | Learned location of Storage (-7) 3583 | -10/Mines | Discovered new exit (range 5) 3759 | -10/Mines | Entered Materials 3759 | -9/Materials | Accompanied by 1 ally 3759 | -9/Materials | Evolved 2 slots: Propulsion x1, Utility x1 3760 | -9/Materials | Identified exit to Materials 3924 | -9/Materials | Repaired Assault Rifle 3957 | -9/Materials | Repaired Lgt. Treads 3997 | -9/Materials | Repaired Pulse Rifle 4335 | -9/Materials | Discovered new exit (range 16) 4783 | -9/Materials | Destroyed 9 combat bots 4926 | -9/Materials | Discovered new exit (range 15) 4991 | -9/Materials | Learned location of Zion (-7) 5048 | -9/Materials | Learned Storage emergency access door positions 5131 | -9/Materials | Learned location of Recycling (-7) 5148 | -9/Materials | Build established: Scavenger-Mutant 5181 | -9/Materials | Learned location of Mines (-9) 5198 | -9/Materials | Learned Materials emergency access door positions 5225 | -9/Materials | Learned Storage stockpile data 5260 | -9/Materials | Learned Storage stockpile data 5303 | -9/Materials | Learned location of 1 exit from Storage 5924 | -9/Materials | Build established: Mutant 6602 | -9/Materials | Identified exit to Mines 7012 | -9/Materials | Repaired Med. Armor Plating 8118 | -9/Materials | Entered Mines 8118 | -9/Mines | Accompanied by 1 ally 8124 | -9/Mines | Assisted by bots powering up and referring to "LRC-V3" 8133 | -9/Mines | Met a Derelict bent on vengeance 8147 | -9/Mines | Received a Rocket Launcher from a helpful Derelict 8160 | -9/Mines | Discovered exit to Materials (range 5) 8211 | -9/Mines | Learned Materials interactive machine intel 8407 | -9/Mines | Build established: Commander-Mutant 8429 | -9/Mines | Discovered exit to Materials (range 13) 8660 | -9/Mines | Assembled infested the area 8662 | -9/Mines | A Derelict revealed a hidden shortcut to a safe place 8691 | -9/Mines | Met 8R-AWN 8864 | -9/Mines | Received a Mining Laser from a helpful Derelict 8901 | -9/Mines | Discovered new exit (range 5) 9134 | -9/Mines | Lost 5 allies 9144 | -9/Mines | Lost 3 parts (1p1n1u) 9402 | -9/Mines | Build established: Mutant 9678 | -9/Mines | Entered Exiles 9728 | -9/Exiles | Welcomed by 8R-AWN 9742 | -9/Exiles | Discovered new exit (range 14) 9821 | -9/Exiles | Met EX-HEX 9923 | -9/Exiles | Met EX-DEC 10024 | -9/Exiles | Met EX-BIN 10054 | -9/Exiles | Aligned with FarCom system 10056 | -9/Exiles | Given EX-Vault access code 10102 | -9/Exiles | Opened EX-Vault 10114 | -9/Exiles | Found PSU Rigger 10124 | -9/Exiles | Found Gui. Plasma Cannon 10165 | -9/Exiles | Warned to stay clear of 0b10 Research branches 10321 | -9/Exiles | Discovered new exit (range 14) 10344 | -9/Exiles | Stole two prototypes: PSU Rigger, Gui. Plasma Cannon 10344 | -9/Exiles | Entered Mines 10687 | -8/Mines | Build established: Scavenger-Mutant 11024 | -8/Mines | Discovered exit to Materials (range 8) 11199 | -8/Mines | Core integrity fell below 50% 11199 | -8/Mines | Discovered exit to Materials (range 5) 11706 | -8/Mines | Entered Materials 11706 | -8/Materials | Evolved 2 slots: Utility x1, Weapon x1 11708 | -8/Materials | Loaded intel: 19 interactive machine locations 12102 | -8/Materials | Build established: Tank 12744 | -8/Materials | Build established: Scavenger-Tank 12773 | -8/Materials | Identified exit to Garrison 12802 | -8/Materials | Discovered new exit (range 15) 13088 | -8/Materials | Build established: Tank 13821 | -8/Materials | Discovered new exit (range 16) 13957 | -8/Materials | Build established: Skirmisher 14400 | -8/Materials | Learned Storage trap positions 14443 | -8/Materials | Learned Factory recycling unit intel 14477 | -8/Materials | Learned location of Lower Caves (-6) 14499 | -8/Materials | Learned location of 1 exit from Extension 14516 | -8/Materials | Identified exit to Factory 14579 | -8/Materials | Learned 4 Recycling zone layouts 14824 | -8/Materials | Entered Garrison 14824 | -8/Garrison | Accompanied by 3 allies 14940 | -8/Garrison | Triggered checkpoint 14993 | -8/Garrison | Triggered checkpoint 15185 | -8/Garrison | P-60 Hacker assimilated allied H-55 Commando 15478 | -8/Garrison | Triggered checkpoint 15508 | -8/Garrison | Triggered checkpoint 15560 | -8/Garrison | Triggered checkpoint 15625 | -8/Garrison | Triggered checkpoint 15642 | -8/Garrison | Triggered checkpoint 15724 | -8/Garrison | Triggered checkpoint 15870 | -8/Garrison | Lost 3 allies 16004 | -8/Garrison | Garrison Relay disabled 16588 | -8/Garrison | Triggered checkpoint 16743 | -8/Garrison | Installed Relay Interface Framework 16966 | -8/Garrison | Triggered checkpoint 17238 | -8/Garrison | Entered Factory 17238 | -7/Factory | Accompanied by 4 allies 17238 | -7/Factory | Evolved 2 slots: Propulsion x1, Utility x1 17239 | -7/Factory | Identified exit to Lower Caves 17240 | -7/Factory | Loaded intel: 6 recycling unit locations 17240 | -7/Factory | FarCom data flow suspended 17576 | -7/Factory | Discovered new exit (range 8) 17639 | -7/Factory | Identified exit to Garrison 17645 | -7/Factory | Entered Garrison 17645 | -7/Garrison | Accompanied by 2 allies 17653 | -7/Garrison | Triggered checkpoint 17678 | -7/Garrison | Triggered checkpoint 17712 | -7/Garrison | Build established: Scavenger-Gunner 18021 | -7/Garrison | Lost 6 allies 18037 | -7/Garrison | Triggered checkpoint 18080 | -7/Garrison | Garrison Relay disabled 18155 | -7/Garrison | Heavy support dispatched to Factory 18259 | -7/Garrison | Triggered checkpoint 18273 | -7/Garrison | Triggered checkpoint 18286 | -7/Garrison | Triggered checkpoint 18305 | -7/Garrison | Triggered checkpoint 18358 | -7/Garrison | Lost 3 parts (2u1w) 18528 | -7/Garrison | Rescued a captive Derelict 18566 | -7/Garrison | Discovered new exit (range 11) 18619 | -7/Garrison | Triggered checkpoint 18619 | -7/Garrison | Triggered checkpoint 18708 | -7/Garrison | Lost 8 allies 18731 | -7/Garrison | H-XX Assembler disabled 19053 | -7/Garrison | Expanded RIF knowledge: Zone Cloak 19075 | -7/Garrison | Discovered new exit (range 15) 19279 | -7/Garrison | Build established: Mutant 19403 | -7/Garrison | Triggered checkpoint 19493 | -7/Garrison | Discovered new exit (range 14) 19930 | -7/Garrison | Entered Factory 19984 | -7/Factory | Repaired Enh. Autogun 20256 | -7/Factory | Identified exit to Garrison 20267 | -7/Factory | Entered Garrison 20267 | -7/Garrison | Accompanied by 1 ally 20293 | -7/Garrison | H-XX Assembler disabled 20615 | -7/Garrison | Build established: Tank 20787 | -7/Garrison | Triggered checkpoint 20894 | -7/Garrison | Triggered checkpoint 20905 | -7/Garrison | Triggered checkpoint 20905 | -7/Garrison | Triggered checkpoint 20957 | -7/Garrison | Lost 4 allies 20967 | -7/Garrison | Destroyed 11 combat bots 21105 | -7/Garrison | Garrison Relay disabled 21239 | -7/Garrison | Garrison Relay disabled 21253 | -7/Garrison | Build established: Scavenger-Tank 21270 | -7/Garrison | Garrison Relay disabled 21290 | -7/Garrison | Garrison Relay disabled 21321 | -7/Garrison | Spotted B-75 Beast 21324 | -7/Garrison | Assimilated Beast 4a with formatsys_high 21471 | -7/Garrison | Discovered new exit (range 12) 21490 | -7/Garrison | Discovered new exit (range 59) 21490 | -7/Garrison | Discovered new exit (range 49) 21490 | -7/Garrison | Discovered new exit (range 11) 22086 | -7/Garrison | Expanded RIF knowledge: Robot Detection 22185 | -7/Garrison | Triggered checkpoint 22244 | -7/Garrison | Entered Factory 22244 | -6/Factory | Accompanied by 5 allies 22244 | -6/Factory | Evolved 2 slots: Utility x2 22437 | -6/Factory | Build established: Commander-Tank 22718 | -6/Factory | P-60 Hacker assimilated allied Administrator 4b 22909 | -6/Factory | Identified exit to Garrison 22944 | -6/Factory | First assault squad dispatched 22945 | -6/Factory | Entered Garrison 22945 | -6/Garrison | Accompanied by 1 ally 22977 | -6/Garrison | Phase Generator disabled 23238 | -6/Garrison | Discovered new exit (range 31) 23238 | -6/Garrison | Discovered new exit (range 55) 23238 | -6/Garrison | Discovered new exit (range 49) 23262 | -6/Garrison | Triggered checkpoint 23464 | -6/Garrison | Build established: Scavenger-Tank 23583 | -6/Garrison | Triggered checkpoint 23713 | -6/Garrison | Expanded RIF knowledge: Program Shield 23793 | -6/Garrison | Triggered checkpoint 23816 | -6/Garrison | Triggered checkpoint 23859 | -6/Garrison | Destroyed 7 combat bots 23891 | -6/Garrison | Triggered checkpoint 23978 | -6/Garrison | Expanded RIF knowledge: Autooverride 24049 | -6/Garrison | Entered Factory 24146 | -6/Factory | Identified exit to Garrison 24196 | -6/Factory | Discovered new exit (range 16) 24712 | -6/Factory | Entered Garrison 24812 | -6/Garrison | Triggered checkpoint 25159 | -6/Garrison | Discovered new exit (range 10) 25211 | -6/Garrison | Triggered checkpoint 25280 | -6/Garrison | Rewired B-90 Cyclops 25283 | -6/Garrison | Rewired B-86 Titan 25453 | -6/Garrison | Triggered checkpoint 25464 | -6/Garrison | Triggered checkpoint 25483 | -6/Garrison | Triggered checkpoint 25520 | -6/Garrison | Destroyed 13 combat bots 25620 | -6/Garrison | Found embedded Infiltrators 25656 | -6/Garrison | Discovered new exit (range 10) 25668 | -6/Garrison | Expanded RIF knowledge: Patrol Navigation 25683 | -6/Garrison | Triggered checkpoint 25746 | -6/Garrison | Triggered checkpoint 26021 | -6/Garrison | Build established: Scavenger-Mutant 26106 | -6/Garrison | Discovered new exit (range 9) 26169 | -6/Garrison | Triggered checkpoint 26358 | -6/Garrison | Spotted Striker 26358 | -6/Garrison | Spotted Striker 26370 | -6/Garrison | Rewired Executioner 26373 | -6/Garrison | Rewired Executioner 26381 | -6/Garrison | Allies destroyed Striker 26384 | -6/Garrison | Destroyed Striker 26412 | -6/Garrison | Lost 5 allies 26527 | -6/Garrison | Entered Factory 26527 | -5/Factory | Accompanied by 3 allies 26527 | -5/Factory | Evolved 2 slots: Power x1, Utility x1 26658 | -5/Factory | Build established: Scavenger-Tank 26710 | -5/Factory | Discovered new exit (range 14) 26827 | -5/Factory | First assault squad dispatched 26882 | -5/Factory | Discovered new exit (range 3) 27213 | -5/Factory | High security lockdown imminent 27223 | -5/Factory | Identified exit to Garrison 27262 | -5/Factory | Entered Garrison 27262 | -5/Garrison | Accompanied by 5 allies 27334 | -5/Garrison | Triggered checkpoint 27596 | -5/Garrison | Triggered checkpoint 27603 | -5/Garrison | Spotted B-75 Beast 27620 | -5/Garrison | Destroyed B-75 Beast 27694 | -5/Garrison | Triggered checkpoint 27827 | -5/Garrison | Discovered new exit (range 12) 28001 | -5/Garrison | Expanded RIF knowledge: Alert ID Control 28071 | -5/Garrison | Build established: Scavenger-Mutant 28204 | -5/Garrison | Triggered checkpoint 28270 | -5/Garrison | Allies destroyed *Left 28321 | -5/Garrison | Lost 3 parts (2u1w) 28331 | -5/Garrison | Garrison Relay disabled 28333 | -5/Garrison | Garrison Relay disabled 28408 | -5/Garrison | Discovered new exit (range 14) 28638 | -5/Garrison | Discovered new exit (range 10) 28654 | -5/Garrison | Triggered checkpoint 29000 | -5/Garrison | Build established: Bothacker-Tank 29052 | -5/Garrison | Entered Factory 29052 | -4/Factory | Accompanied by 1 ally 29052 | -4/Factory | Evolved 2 slots: Propulsion x2 29125 | -4/Factory | High security lockdown imminent 29158 | -4/Factory | Repaired Rnf. Quantum Reactor 29205 | -4/Factory | High security lockdown engaged 29332 | -4/Factory | Discovered new exit (range 5) 29352 | -4/Factory | Entered Upper Caves 29352 | -4/Upper Caves | Accompanied by 1 ally 29811 | -4/Upper Caves | Attracted the attention of an 0b10 checkpoint 30014 | -4/Upper Caves | Discovered new exit (range 3) 30082 | -4/Upper Caves | Learned Research trap positions 30301 | -4/Upper Caves | Learned location of Testing (-3) 30938 | -4/Upper Caves | Entered another Upper Caves area 30939 | -4/Upper Caves | Encountered a Warlord checkpoint 31225 | -4/Upper Caves | Discovered new exit (range 12) 31567 | -4/Upper Caves | Build established: Bothacker-Gunner 31885 | -4/Upper Caves | Attracted the attention of an 0b10 checkpoint 32139 | -4/Upper Caves | Attracted the attention of an 0b10 outpost 32205 | -4/Upper Caves | Spotted 4O-DGM(f) 32207 | -4/Upper Caves | Encountered a Master Thief 32207 | -4/Upper Caves | Spotted 9R-W74(f) 32207 | -4/Upper Caves | Gui. Plasma Cannon stolen by Master Thief 32207 | -4/Upper Caves | Spotted CP-RDS(f) 32208 | -4/Upper Caves | Encountered a Master Thief 32208 | -4/Upper Caves | Encountered a Master Thief 32208 | -4/Upper Caves | Spotted FC-VLV(f) 32209 | -4/Upper Caves | Encountered a Master Thief 32211 | -4/Upper Caves | Imp. Transmission Jammer stolen by Master Thief 32212 | -4/Upper Caves | Rnf. Quantum Reactor stolen by Master Thief 32214 | -4/Upper Caves | Imp. Quantum Reactor stolen by Master Thief 32226 | -4/Upper Caves | System corruption reached 10% 32362 | -4/Upper Caves | Discovered new exit (range 8) 32549 | -4/Upper Caves | Build established: Scavenger-Tank 32620 | -4/Upper Caves | Entered Warlord 32620 | -4/Warlord | Accompanied by 1 ally 32676 | -4/Warlord | System corruption cleaned by Quarantine Array 32710 | -4/Warlord | Discovered new exit (range 14) 32801 | -4/Warlord | Entered Proximity Caves 32801 | -3/Proximity Caves | Accompanied by 1 ally 32803 | -3/Proximity Caves | Spotter reported a threat 32804 | -3/Proximity Caves | Spotter reported a threat 32831 | -3/Proximity Caves | Attracted the attention of an 0b10 checkpoint 32860 | -3/Proximity Caves | P-80 Master assimilated allied Artificer 7a 33285 | -3/Proximity Caves | Spotted B-86 Titan 33313 | -3/Proximity Caves | Destroyed B-86 Titan 33543 | -3/Proximity Caves | Discovered new exit (range 7) 34084 | -3/Proximity Caves | Entered Research 34084 | -3/Research | Accompanied by 1 ally 34084 | -3/Research | Evolved 2 slots: Utility x2 34085 | -3/Research | Loaded intel: 95 trap records 34524 | -3/Research | Core integrity fell below 50% 34558 | -3/Research | Lost 15 parts (3p2n6u4w) 34723 | -3/Research | Core integrity fell below 20% 34736 | -3/Research | Fabricated O-32 Director? 34751 | -3/Research | Found Prototype Launcher 34751 | -3/Research | Identified Hellfire Missile Launcher 34834 | -3/Research | Search patrols dispatched 34842 | -3/Research | Build established: Mutant 35100 | -3/Research | Spotted B-86 Titan 35109 | -3/Research | Found Prototype Processor 35109 | -3/Research | Identified Spectral Analyzer 35149 | -3/Research | Spotted B-86 Titan 35291 | -3/Research | Identified exit to Armory 35291 | -3/Research | Identified exit to Testing 35334 | -3/Research | Search patrols dispatched 35411 | -3/Research | Entered Armory 35497 | -3/Armory | Fabricated Enh. Quantum Rifle? 35559 | -3/Armory | Spotted B-86 Titan 35722 | -3/Armory | Discovered new exit (range 5) 35723 | -3/Armory | Entered Research 35723 | -2/Research | Evolved 2 slots: Propulsion x1, Utility x1 35724 | -2/Research | Identified exit to Quarantine 35758 | -2/Research | Build established: Hacker-Mutant 35764 | -2/Research | Lost 3 parts (1p2u) 35874 | -2/Research | Spotted B-90 Cyclops 35890 | -2/Research | Lost 7 parts (1p1n3u2w) 35913 | -2/Research | Identified exit to Access 35947 | -2/Research | Spotted B-90 Cyclops 35969 | -2/Research | Entered Quarantine 36023 | -2/Quarantine | Cryocooling Duct disabled 36038 | -2/Quarantine | Ambient heat levels rising (+20) 36038 | -2/Quarantine | Non-combat units ordered to evacuate 36123 | -2/Quarantine | Found Prototype Hackware 36179 | -2/Quarantine | Repaired Centrium Light Armor Plating? 36196 | -2/Quarantine | Found Alien Artifact 36257 | -2/Quarantine | Found Alien Impact Weapon 36262 | -2/Quarantine | Identified Exp. Hacking Suite 36265 | -2/Quarantine | Found Alien Artifact 36265 | -2/Quarantine | Identified Hpw. Transdimensional Reconstructor 36265 | -2/Quarantine | Warped through subspace 36327 | -2/Quarantine | Found Hpw. Transdimensional Reconstructor 36394 | -2/Quarantine | Build established: Hacker-Ninja 36456 | -2/Quarantine | Discovered exit to Access (range 11) 36461 | -2/Quarantine | Entered Access 36461 | -1/Access | Evolved 2 slots: Utility x2 36480 | -1/Access | Identified exit to Surface 36549 | -1/Access | Spotted B-99 Colossus 36631 | *** | Escaped! Last Messages --------------- 36554_ Acquired Unknown Hackware. 36554_ Identified Imp. System Shield. 36555_ Acquired 10 matter. 36561_ >> Machine Analyzer network decryption results: 36561_ Garrison Access x3 36561_ Hyperwave Decoder x1 36561_ Wave Collapse Detector x1 36562_ Detecting nearby Garrison Access. 36564_ Connecting with Garrison Access... >>Seal Access door sealed. 36568_ TF Node disabled. 36568_ Adv. Sensor Array tumbles out of TF Node. 36568_ Adv. Signal Interpreter tumbles out of TF Node. 36571_ Acquired Adv. Sensor Array. 36583_ Connecting with Terminal... 36585_ Dismantling Sealed Barrier with Imp. Plasma Cutter. 36615_ Sealed Barrier dismantled. 36618_ Dismantling Main Access Shell with Imp. Plasma Cutter. 36628_ Main Access Shell dismantled. Map ----- +----------------------------------------------------+ | ?????????????????????????????????????????????????? | | ?????????????????????????????????????????????????? | | ?????????????????????????????????????????????????? | | ?????????????????????????????????????????????????? | | ?????????????????????????????????????????????????? | | ?????????????????????????????????????????????????? | | ?????????????????????????????????????????????????? | | ?????????????????????????????????????????????????? | | ?????????????????????????????????????????????????? | | ?????????????????????????????????????????????????? | | ???????????#########################+######??????? | | ???????????# ????? | | ???????????# k ????? | | ???????????# ####### ""###???????????????? | | ???????????# #?????# ""#?????????????????? | | ???????????# #?????# ""#?????????????????? | | ???????????# #?????# T#?????????????????? | | ############ #?????# ""#?????????????????? | | w #?????# ""#?????????????????? | | #?????# ""#??????????????w??? | | ############ #?????""""" """"?????????????????? | | ???????????# #?????# #?????????????????? | | ???????????# #?????# #?????????????????? | | ???????????# #?????# "" " #?????????????????? | | ???????????# A#?????# " " #?????????????????? | | ???????????# #?????# ?" @" "? #?????????????????? | | ??????????## ##????#??" "" "? #?????????????????? | | ??????????# g#???????" "??#?????????????????? | | ??????????# #???????""""""????????????????????? | | ??????????# ! #?????????????????????????????????? | | ??????????# #?????????????????????????????????? | | ??????????## ##?????????????????????????????????? | | ???????????# #??????????????????????????????????? | | ???????????# #??????????????????????????????????? | | ???????????# #?????????????? #?????????????????? | | ############ #???????BB????BB #?????????????????? | | """G""" #???????BB????BB #?????????????????? | | """ """ #???????????? #?????????????????? | | #???????????? #?????????????????? | | #??????????? ??????????????????? | | #?????????? ???????????????????? | | " #?????????? #????######??????????? | | #????????? #?? ?????????? | | ########## # ?????????? | | / ?????????? | | ^ #????????????????????? | | #????????????????????? | | ############ #????????????????????? | | ???????????# ########????????????????????? | | #+###???????????# #???????????????????????????? | +----------------------------------------------------+ Best States ------------- Heat Dissipation 136 Coolant Potential 120 Energy Generation 49 Energy Capacity 1050 Matter Stores 500 Matter Capacity 500 Sight Range 24 Robot Scan Range 16 Terrain Scan Density 10 ECM Strength 1 Jamming Range 14 Cloak Strength 4 Base Temperature (-) 200 Armor Coverage 900 Resistance: KI 30 Propulsion Shielding 66 Weapon Cycling 25 Evasion (%) 64 Targeting Accuracy 8 Melee Accuracy 8 Core Analysis 6 Recoil Reduction 6 Offensive Hacking 26 Defensive Hacking 12 Relay Coupler Types 2 Relay Coupler Value 50 Authchip Count 1 Item Schematics ----------------- Huge Storage Unit | -10/Materials | Hacked Plasma Cutter | -9/Materials | Hacked Cld. Q-thruster | -2/Quarantine | Hacked Robot Schematics ------------------ M-13 Machinist | -10/Materials | Hacked Fabricated ------------ O-32 Director | x1 | -3/Research | Preloaded Enh. Quantum Rifle | x2 | -3/Armory | Preloaded Repaired ---------- Lgt. Treads | 4% | -10/Materials Assault Rifle | 1% | -9/Materials Lgt. Treads | 27% | -9/Materials Pulse Rifle | 46% | -9/Materials Med. Armor Plating | 55% | -9/Materials Enh. Autogun | 51% | -7/Factory Rnf. Quantum Reactor | 50% | -4/Factory Centrium Light Armor Plating | 1% | -2/Quarantine Studied --------- Lgt. Treads | -9/Materials | Hacked Mni. Grenade Launcher | -9/Materials | Hacked Minigun | -9/Materials | Hacked Hvy. Assault Rifle | -9/Materials | Hacked Adv. Treads | -8/Materials | Hacked Gatling Laser | -6/Factory | Hacked Imp. Heavy Treads | -5/Factory | Hacked Impulse Thruster Array | -2/Research | Hacked Nuclear Pulse Array | -2/Research | Hacked Field Propulsion Array | -2/Research | Hacked Lgt. Antimatter Reactor | -2/Research | Hacked Xenon Bombardment Thruster | -2/Research | Hacked Adv. Remote Datajack | -2/Research | Hacked Field Propulsion Drive | -2/Quarantine | Hacked Alien Tech Used ----------------- High-powered Transdimensional Reconstructor Achievements -------------- Consequences Infodabbler Suspicious We Love MA Challenges ------------ None Game ------ Seed SpliceReactiveLauncher Manual? 0 Play Time 05:40:54 Cumulative 343.7 hours Start 2025.10.20 @ 12:44:33 End 2025.10.20 @ 20:16:35 Sessions 1 Manual Loads 0 Difficulty Rogue Special Mode None Game No. 136 Rogue 136 Adventurer 0 Explorer 0 Win Type 0 Total 7 Types 3/0/2/1/0/0/1/0/0/0 Lore% 63 Gallery% 74 Achievement% 51 Wizard Run 0 Options --------- Layout 0 ASCII 0 Keyboard 0 Movement Numpad Keybinds 1 Fullscreen 2 Font 18/X11 Map View 76x50 Zoom Use 0% Tactical HUD 1 Map Filters NONE Filters NONE Steam 1 RUN: e58008bb-32d1-4da0-a005-82c54f78a791